Cogmind - Beta 11.1 @@@ ROGUE MODE // 2022.05.15 @ 17:46:28 // AFD2019/Pay2Buy Player: aoemica Result: Fortifying 0b10! Performance ------------- Evolutions (9) 4500 Regions Visited (34) 6800 Robots Destroyed (2027) 10135 Value Destroyed (113483) 113483 Prototype IDs (81) 1620 Alien Tech Used (1) 200 Bonus (127336) 127336 TOTAL SCORE: 264074 Bonus ------- Triggered High Security 4500 High Alert Combat Kills 85021 Follower Combat Kills 383 Met Data Miner 300 Met Imprinter 300 Met Zhirov 300 Met Warlord at Base 500 MAIN.C Attacked Warlord 500 Warlord Defense Kills 24636 Scanned by Researcher 500 Destroyed MAIN.C Guards 500 Met MAIN.C 5000 Destroyed MAIN.C Shell 5000 Win 3000 Friendly Fire -3104 Cogmind --------- Core Integrity 835/1600 Matter 164/300 Energy 1100/1100 System Corruption 10% Temperature Cool (30) Movement Immobile (Siege) Location By MAIN.C's Side Parts ------- > --- POWER (4) -------- Quantum Reactor Reinforced Quantum Reactor Improved Quantum Reactor Improved Quantum Reactor > --- PROPULSION (6) --- Biometal Heavy Treads Biometal Heavy Treads Biometal Heavy Treads > --- UTILITY (11) ----- Advanced Targeting Computer Advanced Launcher Guidance Computer Experimental Core Analyzer Experimental Core Analyzer Improved Kinecellerator Advanced Weapon Cycler Improved Core Shielding Centrium Heavy Armor Plating Graphene Brace Advanced Force Field > --- WEAPON (4) ------- Railgun Railgun Railgun Railgun > --- INVENTORY (10) --- Experimental Energy Well (600) YI-UF0's Bottomless Matter Pit (992) Long-range Tractor Beam Compact Tesla Bomb Launcher Neutron Missile Launcher Point Singularity Launcher Peak State ------------ > --- POWER ------------ Quantum Reactor Reinforced Quantum Reactor Improved Quantum Reactor Improved Quantum Reactor > --- PROPULSION ------- Biometal Heavy Treads Advanced Heavy Siege Treads Advanced Heavy Siege Treads > --- UTILITY ---------- Enhanced Optical Array Advanced Launcher Guidance Computer Experimental Core Analyzer Improved Kinecellerator Advanced Weapon Cycler Centrium Heavy Armor Plating Graphene Brace Experimental Shock Absorption System Advanced Force Field Antimissile System > --- WEAPON ----------- Railgun Compact Tesla Bomb Launcher Guided Micro-nuke Launcher > --- INVENTORY -------- Experimental Energy Well YI-UF0's Bottomless Matter Pit Experimental Core Analyzer Improved Core Shielding Long-range Tractor Beam Railgun Railgun Railgun Micro-nuke Launcher Neutron Missile Launcher [Rating: 222] Favorites ----------- Power Improved Quantum Reactor Engine F-cell Engine Power Core Neutrino Core Reactor Improved Quantum Reactor Propulsion Advanced Heavy Siege Treads Treads Advanced Heavy Siege Treads Leg Improved Aluminum Leg Utility Enhanced Optical Array Device Advanced Force Field Storage Experimental Energy Well Processor Enhanced Optical Array Protection Centrium Heavy Armor Plating Weapon Railgun Energy Gun Heavy EM Shotgun Energy Cannon Long-range Proton Cannon Ballistic Gun Railgun Ballistic Cannon Compact Linear Accelerator Launcher Compact Tesla Bomb Launcher Piercing Weapon CR-A16's Pointy Stick Special Melee Weapon Advanced Datajack Build | -11 -10 -10 -9 -9 -8 -7 -7 -7 -7 -6 -6 -6 -6 -6 -5 -5 -5 -5 -5 -4 -4 -4 -4 -4 -4 -4 -3 -3 -3 -3 -2 -2 -1 -1 ------- Run | Scr Mat Min Mat Min Mat Fac Low Low Dat Pro Fac Low Low Zio Pro Fac Upp Upp Zhi Pro Fac Was Fac Upp Upp War Pro Res Arm Lab Res Tes Acc Com Slots Evolved 18 | . . . 2 . 2 2 . . . . 2 . . . . 2 . . . . 2 . . . . . . 2 . . 2 . 2 . Power 3 | . . . . . . 1 . . . . 1 . . . . . . . . . . . . . . . . 1 . . . . . . Propulsion 4 | . . . 1 . . . . . . . . . . . . 1 . . . . . . . . . . . . . . 2 . . . Utility 9 | . . . 1 . 2 1 . . . . 1 . . . . 1 . . . . 2 . . . . . . 1 . . . . . . Weapon 2 | . . . . . . . . . . . . . . . . . . . . . . . . . . . . . . . . . 2 . Parts Attached 694 | . . 2 11 . 9 64 9 7 5 2 62 . 13 5 10 53 13 15 2 14 12 1 38 6 15 39 11 61 40 . 3 53 32 87 Power 20 | . . . . . . 2 . . . . . . 1 . . . . 1 . 2 1 . . . . . 1 5 . . 1 1 2 3 Engine 1 | . . . . . . 1 . . . . . . . . . . . . . . . . . . . . . . . . . . . . Core 4 | . . . . . . 1 . . . . . . 1 . . . . 1 . . 1 . . . . . . . . . . . . . Reactor 15 | . . . . . . . . . . . . . . . . . . . . 2 . . . . . . 1 5 . . 1 1 2 3 Propulsion 20 | . . . . . . . . 1 . . 1 . . . . . . . . 3 . 1 . 1 . . 1 3 . . . 4 . 5 Treads 20 | . . . . . . . . 1 . . 1 . . . . . . . . 3 . 1 . 1 . . 1 3 . . . 4 . 5 Leg . | . . . . . . . . . . . . . . . . . . . . . . . . . . . . . . . . . . . Wheel . | . . . . . . . . . . . . . . . . . . . . . . . . . . . . . . . . . . . Hover . | . . . . . . . . . . . . . . . . . . . . . . . . . . . . . . . . . . . Flight . | . . . . . . . . . . . . . . . . . . . . . . . . . . . . . . . . . . . Utility 267 | . . . 2 . . 3 2 . . . 3 . 1 1 4 5 2 5 . 4 5 . 21 2 9 28 4 35 27 . 1 27 21 55 Device 242 | . . . 1 . . 1 2 . . . 3 . . 1 3 4 2 4 . 4 4 . 20 1 5 28 4 34 27 . 1 27 21 45 Storage 13 | . . . . . . . . . . . . . . . 1 1 . . . . 1 . . 1 2 . . 1 . . . . . 6 Processor 4 | . . . 1 . . 1 . . . . . . . . . . . . . . . . . . . . . . . . . . . 2 Hackware . | . . . . . . . . . . . . . . . . . . . . . . . . . . . . . . . . . . . Protection 8 | . . . . . . 1 . . . . . . 1 . . . . 1 . . . . 1 . 2 . . . . . . . . 2 Artifact . | . . . . . . . . . . . . . . . . . . . . . . . . . . . . . . . . . . . Weapon 387 | . . 2 9 . 9 59 7 6 5 2 58 . 11 4 6 48 11 9 2 5 6 . 17 3 6 11 5 18 13 . 1 21 9 24 Energy Gun 10 | . . 2 5 . 3 . . . . . . . . . . . . . . . . . . . . . . . . . . . . . Energy Cannon 208 | . . . . . 2 39 3 4 4 1 50 . 6 3 3 25 5 5 2 2 3 . 4 2 4 2 2 13 6 . . 13 3 2 Ballistic Gun 11 | . . . . . . . . . . . . . . . . . . . . . . . . . . . . . . . . . . 11 Ballistic Cannon 3 | . . . . . . . . . . . . . . . . . . . . . . . . . . . . 2 . . . . 1 . Launcher 151 | . . . 4 . 4 20 4 2 . 1 8 . 5 . 2 23 6 4 . 3 2 . 13 1 2 9 3 3 7 . 1 8 5 11 Special Weapon . | . . . . . . . . . . . . . . . . . . . . . . . . . . . . . . . . . . . Impact Weapon . | . . . . . . . . . . . . . . . . . . . . . . . . . . . . . . . . . . . Slashing Weapon . | . . . . . . . . . . . . . . . . . . . . . . . . . . . . . . . . . . . Piercing Weapon 2 | . . . . . . . . . . . . . . 1 1 . . . . . . . . . . . . . . . . . . . Special Melee Weapon 2 | . . . . . . . . . 1 . . . . . . . . . . . 1 . . . . . . . . . . . . . Unidentified Prototypes 3 | . . . . . . . . . . . . . . 1 . . . . . . . . . . . . . . . . . . 1 1 Corrupted Parts 3 | . . . . . . . . . . . . . . . . . . . . . . . . . . . . 3 . . . . . . System Corruption 20 | . . . . . . . . . . . . . . . . . . . . . . . . . . . . 20 . . . . . . Parts Lost 112 | . . 4 4 . 9 11 2 2 . 1 8 . 3 . 4 7 1 1 . 3 . 2 4 3 . 6 2 3 2 . 1 9 4 16 Power 22 | . . 1 . . 1 2 . 1 . . 2 . . . . 2 . . . . . . 1 . . 3 . 2 1 . . 3 1 2 Propulsion 17 | . . 1 1 . 3 2 . . . 1 1 . . . 2 . . 1 . . . . . 1 . 1 . . . . . 1 . 2 Utility 49 | . . . 1 . 1 5 1 . . . 5 . 2 . 1 4 1 . . 2 . . 2 2 . 1 2 1 1 . 1 4 3 9 Weapon 24 | . . 2 2 . 4 2 1 1 . . . . 1 . 1 1 . . . 1 . 2 1 . . 1 . . . . . 1 . 3 Highest Loss Streak 7 | . . 2 2 . 5 3 2 1 . 1 2 . 2 . 3 2 1 1 . 3 . 2 1 2 . 1 1 2 1 . 1 4 2 7 To Critical Strikes 2 | . . . . . . . . . . . . . . . . . 1 . . . . . . . . . . . . . . . 1 . Average Slot Usage (%) 83 | . 81 100 97 100 89 98 95 92 87 98 92 93 86 81 81 82 82 81 71 76 75 40 75 75 77 78 78 78 79 80 78 77 79 82 Engine 3 | . 14 14 11 11 . . 7 9 15 15 13 13 13 13 13 4 . . . . . . . . . . . . . . . . . . Core 2 | . . . . . 8 14 7 4 . . 5 6 5 6 6 6 11 11 11 7 5 1 . . . . . . . . . . . . Reactor 9 | . . . . . . . . . . . . . . . . 4 5 5 5 8 10 2 14 15 15 15 15 18 19 19 17 16 16 16 Treads 10 | . . . . . . 8 23 23 23 21 13 13 13 13 7 11 11 11 11 11 10 10 10 10 10 10 10 9 9 9 13 13 12 11 Leg 3 | . 28 28 32 33 27 12 . . . . . . . . . . . . . . . . . . . . . . . . . . . . Device 21 | . 1 14 11 11 17 28 26 23 30 30 26 26 26 28 26 23 23 22 23 19 21 10 20 21 24 26 26 21 22 23 21 20 23 18 Processor 10 | . . . 10 11 9 7 7 7 7 7 12 13 6 6 6 11 11 11 11 11 10 10 14 11 10 10 10 13 14 14 13 13 8 11 Protection 6 | . 8 14 10 11 9 8 7 7 7 7 5 6 6 6 6 5 5 5 5 3 5 1 4 5 5 5 5 4 4 4 4 4 4 6 Energy Gun 1 | . 28 28 21 22 8 . . . . . . . . . . . . . . . . . . . . . . . . . . . . . Energy Cannon 4 | . . . . . 9 12 14 14 . 14 12 13 10 . 9 7 8 4 . 10 9 1 3 5 5 . . 3 1 4 4 2 6 . Ballistic Gun 2 | . . . . . . . . . . . . . . . . . . . . . . . . . . . . . . . . . . 12 Launcher 3 | . . . . . . 2 . . . . . . 2 . 2 2 2 6 . . . . 5 5 5 9 9 4 6 4 4 5 7 2 Naked Turns . | . . . . . . . . . . . . . . . . . . . . . . . . . . . . . . . . . . . Heaviest Build 181 | 12 16 17 18 18 31 52 49 55 55 55 76 76 77 77 87 90 94 94 87 121 127 127 128 121 130 130 133 157 160 146 146 151 180 181 Greatest Support 240 | 23 23 23 39 39 54 90 90 90 90 90 100 100 100 100 100 150 150 150 150 155 155 155 155 160 160 160 155 160 160 160 240 240 235 240 Greatest Overweight (x) 51 | . . . . . . 1 . . . . 1 . . . 1 . . . . . . 1 1 . . . 41 1 . . . . . 51 Average Overweight (x) . | . . . . . . . . . . . . . . . . . . . . . . . . . . . 3 . . . . . . 5 Largest Inventory Capacity 10 | 10 10 10 10 10 10 10 10 10 10 10 10 10 10 10 10 10 10 10 10 10 10 10 10 10 10 10 10 10 10 10 10 10 10 10 Average Capacity 10 | 10 10 10 10 10 10 10 10 10 10 10 10 10 10 10 10 10 10 10 10 10 10 10 10 10 10 10 10 10 10 10 10 10 10 10 Most Carried 10 | . 6 7 10 10 10 10 8 7 9 9 10 9 9 10 10 10 10 10 10 10 10 10 10 10 10 10 10 10 10 10 10 10 10 10 Average Carried 8 | . 1 6 8 9 7 8 7 6 8 8 9 9 8 9 9 9 9 9 9 9 9 9 9 9 9 9 9 9 9 10 9 9 9 9 Final Capacity 10 | 10 10 10 10 10 10 10 10 10 10 10 10 10 10 10 10 10 10 10 10 10 10 10 10 10 10 10 10 10 10 10 10 10 10 10 Final Carried 10 | . 6 6 9 10 7 10 7 7 7 9 10 9 8 9 10 10 10 10 10 10 10 10 10 10 10 9 10 10 10 10 9 10 10 9 Class Distribution -------------------- 65% | Generator-Mutant 18% | Mutant 9% | Generator-Gunner 6% | Generator-Bomber Dominant Class ---------------- Mutant | -10/Materials Mutant | -10/Mines Mutant | -9/Materials Mutant | -9/Mines Mutant | -8/Materials Mutant | -7/Factory Mutant | -7/Lower Caves Mutant | -7/Lower Caves Mutant | -7/Data Miner Mutant | -6/Proximity Caves Generator-Mutant | -6/Factory Generator-Mutant | -6/Lower Caves Generator-Mutant | -6/Lower Caves Generator-Mutant | -6/Zion Generator-Mutant | -5/Proximity Caves Generator-Mutant | -5/Factory Generator-Mutant | -5/Upper Caves Generator-Mutant | -5/Upper Caves Generator-Mutant | -5/Zhirov Generator-Mutant | -4/Proximity Caves Generator-Mutant | -4/Factory Mutant | -4/Waste Generator-Mutant | -4/Factory Generator-Mutant | -4/Upper Caves Generator-Mutant | -4/Upper Caves Generator-Mutant | -4/Warlord Generator-Mutant | -3/Proximity Caves Generator-Mutant | -3/Research Generator-Mutant | -3/Armory Generator-Mutant | -3/Lab Generator-Mutant | -2/Research Generator-Mutant | -2/Testing Generator-Mutant | -1/Access Generator-Gunner | -1/Command Resources | -11 -10 -10 -9 -9 -8 -7 -7 -7 -7 -6 -6 -6 -6 -6 -5 -5 -5 -5 -5 -4 -4 -4 -4 -4 -4 -4 -3 -3 -3 -3 -2 -2 -1 -1 ----------- Run | Scr Mat Min Mat Min Mat Fac Low Low Dat Pro Fac Low Low Zio Pro Fac Upp Upp Zhi Pro Fac Was Fac Upp Upp War Pro Res Arm Lab Res Tes Acc Com Matter Collected 44653 | . 200 15 161 . 170 1655 390 264 . 346 1928 63 529 . 370 2056 465 659 . 703 233 3 3188 408 481 4393 1754 3117 3376 . 684 3242 3876 9924 Remotely 16833 | . . . . . . . . . . . . . . . . 715 . . . . . . 994 . . 2601 . 1946 2640 . . 1787 2800 3350 Salvage Created 134690 | . 1319 551 2510 57 2704 4337 292 368 . 432 8001 160 1327 . 1169 6410 905 1619 . 1153 2425 . 10059 1341 1890 11247 2005 10842 11174 . 2897 15266 14870 17360 Parts . | . . . . . . . . . . . . . . . . . . . . . . . . . . . . . . . . . . . Haulers Intercepted 29 | . 2 . 6 . 5 5 . . . . 1 . . . . 4 . . . . . . 2 . 1 . . . . . . 2 1 . Recyclers Shooed 14 | . . . . . . . . . . . 1 . . . . 2 . . . . . . 1 . . . . 2 . . . 2 4 2 Parts Field Recycled . | . . . . . . . . . . . . . . . . . . . . . . . . . . . . . . . . . . . Retrieved Matter . | . . . . . . . . . . . . . . . . . . . . . . . . . . . . . . . . . . . Parts Self-Destructed . | . . . . . . . . . . . . . . . . . . . . . . . . . . . . . . . . . . . Prevented . | . . . . . . . . . . . . . . . . . . . . . . . . . . . . . . . . . . . Kills | -11 -10 -10 -9 -9 -8 -7 -7 -7 -7 -6 -6 -6 -6 -6 -5 -5 -5 -5 -5 -4 -4 -4 -4 -4 -4 -4 -3 -3 -3 -3 -2 -2 -1 -1 ------- Run | Scr Mat Min Mat Min Mat Fac Low Low Dat Pro Fac Low Low Zio Pro Fac Upp Upp Zhi Pro Fac Was Fac Upp Upp War Pro Res Arm Lab Res Tes Acc Com Combat Hostiles Destroyed 2068 | . 24 10 40 2 50 94 9 12 . 7 142 4 24 . 26 149 26 30 . 25 33 . 135 23 27 182 30 151 166 . 36 154 194 263 Melee 1 | . . . . . . . . . . . . . . . . . . . . . 1 . . . . . . . . . . . . . Guns 86 | . 22 9 25 2 18 . . . . . . . . . . . . . . . . . . . . . . . . . . . . 10 Cannons 240 | . . . . . 6 22 3 5 . 3 47 4 4 . 9 24 6 3 . 6 6 . 10 3 2 3 3 29 12 . . 15 6 9 AOE 1030 | . 1 . 14 . 19 63 6 7 . 3 59 . 11 . 11 91 16 12 . 13 12 . 63 10 11 94 9 76 93 . 15 64 98 159 Classes Destroyed 31 | . 9 1 3 . 2 1 . . . . 2 1 1 . 1 . 1 1 . . . . 1 . . 4 . 1 . . . 2 . . Worker 60 | . 1 3 3 . 1 5 . . . . 3 . . . . 6 . . . . 3 . 3 . . . . 3 . . . 10 3 16 Builder 68 | . 4 . 1 . 2 6 . . . . 12 . . . . 7 . . . . . . 5 . . . . 1 . . . 21 9 . Tunneler 10 | . 1 1 1 . . 1 . . . . 1 . . . . 2 . . . . . . . . . . . . . . . . 3 . Hauler 29 | . 2 . 6 . 5 5 . . . . 1 . . . . 4 . . . . . . 2 . 1 . . . . . . 2 1 . Recycler 50 | . . 1 2 . . 10 . . . . 5 . . . . 1 . . . . 2 . 3 . . . . 5 . . . 11 3 7 Carrier 3 | . . . . . . . . . . . . . . . . . . . . . . . 1 . . . . . . . . 1 . 1 Minesweeper 2 | . . . . . . . . . . . . . . . . . . 1 . . . . . 1 . . . . . . . . . . Mechanic 81 | . 1 . . . . 7 . . . . 5 . . . . 5 . . . 1 1 . 8 . . 3 . 6 10 . . 9 13 12 Operator 12 | . 2 . 1 . . 1 . . . . 1 . . . . 3 . . . . . . 1 . . . . 2 . . . 1 . . Watcher 43 | . 3 . 4 . 4 3 . . . . 4 . . . . 5 . . . . 1 . 5 . . . . 4 1 . . 1 3 5 Swarmer 188 | . 6 3 . 1 8 8 2 4 . 3 12 4 3 . 8 14 7 10 . 4 9 . 6 10 6 13 3 6 1 . 10 . 11 16 Saboteur 77 | . . . . . . . . . . . 7 . . . . 7 . . . . 1 . 7 . . 15 . 8 10 . . 6 9 7 Grunt 890 | . 18 7 28 1 27 57 6 6 . 2 60 . 16 . 13 68 3 12 . 9 12 . 53 4 17 87 10 69 68 . 5 45 77 110 Brawler 124 | . . . 1 . 3 2 . . . . 10 . 1 . 1 13 3 1 . 1 . . 11 2 . 11 3 8 12 . . 15 10 16 Duelist 117 | . . . . . 2 3 . . . . 11 . 1 . . 8 1 . . 4 3 . 9 3 . 6 1 10 13 . . 13 10 19 Protector 85 | . . . 1 . 1 4 . . . . 6 . . . . 5 . . . . . . 7 . . 6 1 7 11 . . 9 9 18 Researcher 3 | . . . . . . . . . . . . . . . . . . . . . . . . . . . . . . . . 3 . . Sentry 74 | . . . 10 . 7 5 1 1 . 1 3 . . . 3 8 2 2 . 2 2 . 2 2 2 . 2 3 2 . 5 4 . 5 Demolisher 3 | . . . . . . . . . . . . . . . . . . . . . . . . . . 1 . . 1 . 1 . . . Specialist 20 | . . . . . . . . . . . . . . . . . . . . . . . . . . 4 . 6 8 . . . . 2 Hunter 155 | . . . . . 2 2 . . . 1 12 . 2 . . 12 4 . . 4 2 . 17 2 2 8 8 5 14 . 10 21 23 4 Programmer 211 | . . . . . . 13 . 1 . . 20 . . . . 14 . . . 1 4 . 22 2 . 6 1 25 20 . . 27 23 32 Heavy 4 | . . . . . . . . . . . 1 . . . . . . . . . . . 1 . . . . 1 . . . . . 1 Q-Series 6 | . . . . . . . . . . . . . . . . . . . . . . . . . . . . . . . . 6 . . Behemoth 3 | . . . . . . . . . . . . . . . 1 . . 1 . . . . . . . . 1 . . . . . . . M Guard 2 | . . . . . . . . . . . . . . . . . . . . . . . . . . . . . . . . . . 2 Enhanced Q-Series 15 | . . . . . . . . . . . . . . . . . . . . . . . . . . . . . . . . . . 15 Combat Programmer 2 | . . . . . . . . . . . . . . . . . . . . . . . . . . . . . . . . . . 2 Investigator 7 | . . . . . . . . . . . . . . . . . . . . . . . . . . . . 2 1 . . 1 2 1 Striker 48 | . . . . . . . . . . . . . . . . . . . . . . . . . . 14 . 1 3 . 1 5 14 10 Executioner 39 | . . . . . . . . . . . . . . . . . . . . . . . . . . 11 . 2 5 . 4 2 8 7 Decomposer 1 | . . . . . . . . . . . . 1 . . . . . . . . . . . . . . . . . . . . . . Samaritan 1 | . . . . . . . . . . . . 1 . . . . . . . . . . . . . . . . . . . . . . Thief 1 | . . . . . . . . . . . . . 1 . . . . . . . . . . . . . . . . . . . . . Thug 9 | . . . . . . . . . . . . . . . . . 4 4 . . . . . . . 1 . . . . . . . . Savage 1 | . . . . . . . . . . . . . . . . . 1 . . . . . . . . . . . . . . . . . Fireman 2 | . . . . . . . . . . . . . . . . . . . . . . . . . . . . . . . . 2 . . Mutant 1 | . . . . . . . . . . . . . . . . . 1 . . . . . . . . . . . . . . . . . Best Kill Streak 55 | . 6 3 12 1 12 17 4 7 . 3 22 3 4 . 10 36 9 7 . 14 15 . 17 8 7 14 8 24 26 . 6 37 55 49 Combat Bots Only 49 | . 3 3 10 1 11 15 4 7 . 3 19 3 4 . 10 34 9 7 . 13 15 . 15 8 7 13 8 21 24 . 6 34 49 48 Max Kills in Single Turn 9 | . 2 2 3 1 7 5 2 3 . 2 6 1 2 . 4 7 4 4 . 2 5 . 4 2 3 3 2 5 6 . 2 4 4 9 Gunslinging 1 | . 1 1 . . 1 . . . . . . . . . . . . . . . . . . . . . . . . . . . . . Exploded 9 | . 1 . 3 . 7 5 2 3 . 2 6 . 2 . 4 6 4 4 . 2 5 . 4 2 3 3 2 5 6 . 2 4 4 9 Melee 1 | . . . . . . . . . . . . . . . . . . . . . 1 . . . . . . . . . . . . . Uniques/NPCs Destroyed 1 | . . . . . . . . . . . . . . . . . . . . . . . . . . . . . . . . . . 1 MAIN.C Shell (-1/Command) Combat | -11 -10 -10 -9 -9 -8 -7 -7 -7 -7 -6 -6 -6 -6 -6 -5 -5 -5 -5 -5 -4 -4 -4 -4 -4 -4 -4 -3 -3 -3 -3 -2 -2 -1 -1 -------- Run | Scr Mat Min Mat Min Mat Fac Low Low Dat Pro Fac Low Low Zio Pro Fac Upp Upp Zhi Pro Fac Was Fac Upp Upp War Pro Res Arm Lab Res Tes Acc Com Damage Taken 44580 | . 433 266 826 10 1153 2098 159 148 . 248 1894 51 459 . 726 2298 492 182 . 414 582 166 3420 402 263 2368 788 2613 2620 . 642 4862 2624 11373 Core 3041 | . 106 28 158 . 169 204 12 12 . 12 219 . 19 . 99 178 47 6 . 34 . . 98 17 11 246 26 122 158 . 96 199 106 659 Absorbed by Shields 31841 | . . . . . . 578 62 59 . 97 1628 55 373 . 685 1735 294 189 . 422 611 72 1992 397 273 1831 826 2760 2758 . 667 4058 2761 6658 Reduced by Siege Mode 4156 | . . . . . . . . . . . 59 . 6 . 5 196 20 12 . 27 57 . 401 20 31 269 79 319 382 . 46 831 240 1156 Redirected to Shielding 58 | . . . . . . . . . . . . . . . . . . . . . . . . . . . . . . . . . . 58 Core Remaining (%) 67 | 100 . 46 . 60 69 . . . . 65 . . . . 60 . . . . 73 . . . . . . 65 . . 78 . 79 . 52 Volleys Fired 4281 | . 59 37 98 2 93 169 15 23 . 16 305 8 56 1 64 327 48 108 . 57 112 5 273 52 93 299 103 354 252 . 78 363 329 482 Largest 4 | . 2 2 2 2 2 2 2 2 . 2 2 2 2 1 2 2 2 1 . 1 1 2 1 1 1 1 1 2 1 . 1 2 2 4 Hottest 239 | . 95 95 95 95 138 138 138 144 . 144 162 162 162 75 156 124 92 81 . 81 110 114 113 113 113 113 113 169 120 . 120 172 143 239 Shots Fired 5174 | . 118 74 190 4 180 276 24 33 . 30 502 17 81 1 91 363 52 108 . 59 113 9 266 53 92 299 104 340 234 . 78 352 332 699 Gun 797 | . 118 74 184 4 144 . . . . . . . . . . . . . . . . . . . . . . . . . . . . 273 Cannon 2054 | . . . . . 26 184 12 23 . 28 437 17 44 1 76 261 32 75 . 46 100 9 72 27 62 23 48 185 46 . 1 113 28 78 Launcher 2323 | . . . 6 . 10 92 12 10 . 2 65 . 37 . 15 102 20 33 . 13 13 . 194 26 30 276 56 155 188 . 77 239 304 348 Special . | . . . . . . . . . . . . . . . . . . . . . . . . . . . . . . . . . . . Kinetic 336 | . . . . . . . . . . . . . . . . . . . . . . 9 . . . . . 21 . . . . . 306 Thermal 720 | . . . . . . 34 . 5 . . 80 . . . . 44 5 56 . 9 39 . 54 13 33 8 24 107 41 . 1 101 21 45 Explosive 766 | . . . 6 . 10 92 12 10 . 2 56 . 11 . 15 96 20 6 . 13 2 . 35 5 2 53 26 34 62 . . 23 83 92 Electromagnetic 3352 | . 118 74 184 4 170 150 12 18 . 28 366 17 70 1 76 223 27 46 . 37 72 . 177 35 57 238 54 178 131 . 77 228 228 256 Robot Hit Streak 75 | . 10 9 16 8 17 20 12 5 . 11 32 3 14 . 15 56 25 28 . 19 26 14 75 26 11 50 63 37 31 . 22 30 47 39 Robot Miss Streak 6 | . 3 5 3 2 6 2 1 1 . 2 5 5 4 . 5 4 1 2 . 3 4 2 3 1 2 3 1 4 1 . 1 3 2 4 Penetration Max 1 | . . . . . . . . . . . . . . . . . . . . . . . . . . . . . . . . . . 1 Secondary Targets 12 | . 4 1 1 . 1 . . . . . . . . . . . . . . . . . . . . . . . . . . . . 5 Max Gunslinging Chain 1 | . 1 1 1 . 1 . . . . . . . . . . . . . . . . . . . . . . . . . . . . 1 Capacitor 847 | . . . . . . . . . . . . . . . 24 224 31 75 . 37 94 . 38 26 19 15 44 157 4 . . 59 . . Shots Hit Robots 3013 | . 98 38 151 4 148 181 13 16 1 20 363 6 42 . 55 270 36 37 . 42 84 6 154 22 25 107 46 190 77 . 35 137 148 461 Core Hits 4805 | . 53 23 89 3 122 237 18 18 . 8 274 4 39 . 40 333 52 38 . 45 48 1 349 35 29 357 39 386 487 . 61 468 455 694 Critical Kills 7 | . . . . . . . . . . . 1 . . . . 1 . . . . 1 . 1 . . . . 1 . . . 1 . 1 Critical Parts Destroyed 1 | . . . . . . . . . . . . . . . . . . . . . . . . . . . . . . . . . . 1 Critical Strikes 27 | . . . . . . 4 . . . . 1 1 . . 2 4 . . . 1 2 3 1 . . . 1 2 1 . . 1 . 3 Meltdown 7 | . . . . . . . . . . . 1 . . . . 1 . . . . 1 . 1 . . . . 1 . . . 1 . 1 Destroy 4 | . . . . . . . . . . . . . . . . . . . . . . 3 . . . . . . . . . . . 1 Blast 1 | . . . . . . . . . . . . . . . . . . . . . . . . . . . . . . . . . . 1 Corrupt 14 | . . . . . . 4 . . . . . 1 . . 1 3 . . . 1 1 . . . . . 1 1 1 . . . . . Impale 1 | . . . . . . . . . . . . . . . 1 . . . . . . . . . . . . . . . . . . . Melee Attacks 269 | . . . . . . . . . 1 . . . . 260 7 . . . . . 1 . . . . . . . . . . . . . Impact . | . . . . . . . . . . . . . . . . . . . . . . . . . . . . . . . . . . . Slashing . | . . . . . . . . . . . . . . . . . . . . . . . . . . . . . . . . . . . Piercing 267 | . . . . . . . . . . . . . . 260 7 . . . . . . . . . . . . . . . . . . . Sneak Attacks 2 | . . . . . . . . . 1 . . . . . . . . . . . 1 . . . . . . . . . . . . . Combat Hostiles . | . . . . . . . . . . . . . . . . . . . . . . . . . . . . . . . . . . . Follow-up Attacks . | . . . . . . . . . . . . . . . . . . . . . . . . . . . . . . . . . . . Damage Inflicted 350393 | . 1892 1050 4556 111 5021 15026 1033 1017 . 838 22982 194 2512 . 3299 27899 3478 3098 . 3849 5332 160 23342 3126 3131 26511 5470 25280 27844 . 3811 27548 36256 64727 Guns 14875 | . 1588 735 2562 88 2735 . . . . . . . . . . . . . . . . . . . . . . . . . . . . 7167 Cannons 55234 | . . . . . 623 4379 166 470 . 507 11902 180 1212 . 1422 7058 899 948 . 1317 2943 160 2968 938 922 423 760 6515 1474 . . 3604 1107 2337 Explosions 278097 | . 280 301 1947 . 1632 10576 867 547 . 331 10997 . 1300 . 1714 20808 2579 2150 . 2532 2340 . 20347 2188 2209 26088 4710 18724 26370 . 3811 23843 35123 53783 Melee 163 | . . . . . . . . . . . . . . . 163 . . . . . . . . . . . . . . . . . . . Ramming 2024 | . 24 14 47 23 31 71 . . . . 83 14 . . . 33 . . . . 49 . 27 . . . . 41 . . . 101 26 1440 Kinetic 9368 | . . . . . . . . . . . . . . . . . . . . . . 160 . . . . . 1174 . . . . . 8034 Thermal 27523 | . 280 301 1031 . 545 2199 . 174 . 45 4247 . . . 417 1960 197 387 . 295 2108 . 2300 580 . . . 3390 1502 . . 3173 922 1470 Explosive 154490 | . . . 916 . 1087 9325 867 547 . 286 8210 . 513 . 1297 18822 2510 421 . 2416 666 . 7576 914 518 10346 2751 8790 13964 . . 6697 18260 36791 Electromagnetic 156825 | . 1588 735 2562 88 3358 3431 166 296 . 507 10442 180 1999 . 1422 7084 771 2290 . 1138 2509 . 13439 1632 2613 16165 2719 11885 12378 . 3811 17577 17048 16992 Impact . | . . . . . . . . . . . . . . . . . . . . . . . . . . . . . . . . . . . Slashing . | . . . . . . . . . . . . . . . . . . . . . . . . . . . . . . . . . . . Piercing 163 | . . . . . . . . . . . . . . . 163 . . . . . . . . . . . . . . . . . . . Highest Corruption 47 | . . . . . . 5 5 5 5 5 7 7 7 7 . 7 11 11 11 12 3 18 23 26 26 26 4 36 47 47 . 33 10 21 Average Corruption 10 | . . . . . . 2 5 5 5 5 3 7 7 7 . 5 10 11 11 11 2 13 12 25 26 1 3 28 39 47 . 14 5 11 Corruption Purged 62 | . . . . . . . . . . . . . . . . . . . . . . 3 7 . . . . . . . . . 10 42 Corruption Blocked 88 | . . . . . . . . . . . 8 . . . . . . . . . . . . . . 14 . . . . 6 60 . . Effects 1779 | . . . . . . 61 36 52 3 23 145 34 48 5 . 12 45 70 8 68 4 7 101 86 65 39 103 250 124 14 . 153 28 195 Message Errors 429 | . . . . . . 16 5 15 . 7 31 7 9 2 . 2 9 20 2 18 . . 30 25 13 16 27 70 29 2 . 29 6 39 Matter Fused 443 | . . . . . . 17 14 10 . 6 36 10 8 1 . 3 17 19 2 16 . . 25 16 16 7 31 56 28 5 . 45 8 47 Heat Flow Errors 190 | . . . . . . 8 2 8 1 . 20 . 7 1 . 3 5 3 1 13 . 1 9 10 9 2 14 18 10 1 . 13 4 27 Energy Discharges 214 | . . . . . . 6 4 9 . 2 23 4 7 . . 2 4 9 2 7 1 2 12 12 10 4 15 30 4 2 . 12 2 29 Parts Rejected 12 | . . . . . . . . 1 . . 1 . 1 . . . . 2 . . . . . 1 . . . 1 1 . . 3 . 1 Data Loss (minor) 200 | . . . . . . 8 3 2 1 5 11 6 9 1 . 1 4 7 1 9 2 1 14 8 3 4 6 30 16 2 . 22 3 21 Data Loss (major) 84 | . . . . . . . 3 4 . . 5 2 4 . . . 2 3 . 2 . 1 3 4 4 3 4 11 11 1 . 9 1 7 Misfires 54 | . . . . . . 3 4 1 . 1 12 2 1 . . 1 3 3 . 2 1 . . 3 2 . 2 5 . . . 1 2 5 Alerts 62 | . . . . . . 1 . 2 1 1 4 2 2 . . . . 1 . 1 . 1 1 4 2 3 3 9 5 1 . 6 2 10 Misdirections 8 | . . . . . . . . . . . . . . . . . . . . . . 1 . 1 3 . . . 2 . . . . 1 Weapon Failures 83 | . . . . . . 2 1 . . 1 2 1 . . . . 1 3 . . . . 7 2 3 . 1 20 18 . . 13 . 8 Overload Shots 3 | . . . . . . 2 . . . . . . . . . . . . . . 1 . . . . . . . . . . . . . Overflow Damage 9411 | . . 40 108 . 34 483 31 53 . 120 636 9 32 . 79 963 3 122 . 283 409 . 720 90 87 365 167 577 361 . 5 480 883 2271 Projectiles 2173 | . . . . . . 140 . 52 . 27 358 5 15 . 18 138 . 30 . 26 167 . 429 46 16 . . 261 97 . . 204 84 60 Explosions 7129 | . . 40 108 . 34 335 31 1 . 93 278 . 17 . 61 825 3 92 . 257 242 . 291 44 71 365 167 315 264 . 5 254 783 2153 Melee 109 | . . . . . . 8 . . . . . 4 . . . . . . . . . . . . . . . 1 . . . 22 16 58 Knockbacks 40 | . . . 1 1 2 1 . . . . . . . . . 1 . . . . . . . . . . . 2 . . . . . 32 Impact 29 | . . . 1 1 2 1 . . . . . . . . . 1 . . . . . . . . . . . . . . . . . 23 Kinetic 11 | . . . . . . . . . . . . . . . . . . . . . . . . . . . . 2 . . . . . 9 Secondary . | . . . . . . . . . . . . . . . . . . . . . . . . . . . . . . . . . . . Self-Inflicted Damage 3678 | . 53 35 55 . 92 70 . 39 . 60 159 . 52 . 33 291 . . . 91 305 . 261 5 26 177 98 71 270 . 38 395 182 820 Shots 160 | . 2 1 2 . 2 1 . 1 . 1 3 . 2 . 1 8 . . . 3 7 . 26 1 1 7 6 5 12 . 5 22 9 32 Rammed 160 | . . . . . . . . . . . 7 2 . . . 1 . . . . 4 . 1 . . . . 1 . . . 5 2 137 Targets Rammed 193 | . 5 3 8 3 6 6 . . . . 7 3 . . . 1 . . . . 4 . 1 . . . . 1 . . . 5 2 138 Kicked 31 | . 5 3 8 3 6 6 . . . . . . . . . . . . . . . . . . . . . . . . . . . . Crushed 2 | . . . . . . . . . . . . 1 . . . . . . . . . . . . . . . . . . . . . 1 Highest Temperature 391 | . 206 99 65 . 192 391 254 265 197 56 274 52 222 101 135 186 218 227 67 231 128 128 243 207 198 172 183 248 236 202 . 257 183 264 Average Temperature 55 | . 58 26 12 . 46 64 72 98 111 21 54 28 49 48 39 56 52 55 67 71 21 94 92 78 60 53 56 67 91 112 . 85 118 58 Received Heat Transfer 5424 | . 174 108 345 6 531 584 82 34 . 28 379 . 180 . 115 314 54 48 . 29 43 . 254 31 58 185 59 331 251 . 20 219 132 830 Effects 1 | . . . . . . 1 . . . . . . . . . . . . . . . . . . . . . . . . . . . . Energy Bleed 1 | . . . . . . 1 . . . . . . . . . . . . . . . . . . . . . . . . . . . . Siege Activations 150 | . . . . . . . . . . . 12 . 3 . 2 19 4 9 . 4 4 1 7 3 6 9 5 16 2 . 3 16 5 20 Total Turns 21431 | . . . . . . . . . . . 5466 . 32 . 31 809 31 111 . 73 47 1 1737 84 71 3949 74 3228 848 . 28 2101 834 1876 Longest Duration 2541 | . . . . . . . . . . . 1256 . 22 . 23 293 11 29 . 35 18 1 955 46 27 2541 28 1262 769 . 17 954 582 531 Robots Corrupted 736 | . 3 1 2 . 7 10 . . . 1 37 . 9 . 5 38 4 15 . 6 13 . 64 12 15 87 18 45 62 . 21 78 95 88 Combat Hostiles 701 | . 1 1 1 . 7 8 . . . 1 34 . 9 . 5 33 4 15 . 6 12 . 62 10 14 85 18 45 60 . 21 74 90 85 Parts Fried . | . . . . . . . . . . . . . . . . . . . . . . . . . . . . . . . . . . . Impact Corruptions 12 | . . . . . . 2 . . . . . 1 . . . . . . . . . . . . . . . 1 . . . 1 1 6 Robots Melted 11 | . . . . . . 1 . . . . 2 . . . . 1 . . . . 2 . 1 . . . . 1 1 . . 1 . 1 Combat Hostiles 9 | . . . . . . 1 . . . . 2 . . . . 1 . . . . 2 . . . . . . 1 1 . . 1 . . Parts Melted 4 | . . . . . . 1 . . . . . . . . . . . . . . . . . 1 . . . . 2 . . . . . Heat Transferred 23879 | . 300 450 1300 . 650 1900 . 200 . 50 4350 . . . 370 1895 250 550 . 300 2150 . 1826 444 . . . 1480 1126 . . 2516 666 1106 Parts Sabotaged 1 | . . . . . . . . . . . . . . . . . . . . . 1 . . . . . . . . . . . . . Parts Stolen 1 | . . . . . . . . . . . . . 1 . . . . . . . . . . . . . . . . . . . . . Parts Stripped . | . . . . . . . . . . . . . . . . . . . . . . . . . . . . . . . . . . . Power Chain Reactions 71 | . 5 4 16 . 7 4 . . . 1 14 . . . 1 10 1 . . 1 2 . 1 . . . . . 1 . . . . 3 Missiles Intercepted 15 | . . . . . . . . . . . . . . . . . . . . . . . . . . . . . . . . . . 15 Alert | -11 -10 -10 -9 -9 -8 -7 -7 -7 -7 -6 -6 -6 -6 -6 -5 -5 -5 -5 -5 -4 -4 -4 -4 -4 -4 -4 -3 -3 -3 -3 -2 -2 -1 -1 ------- Run | Scr Mat Min Mat Min Mat Fac Low Low Dat Pro Fac Low Low Zio Pro Fac Upp Upp Zhi Pro Fac Was Fac Upp Upp War Pro Res Arm Lab Res Tes Acc Com Peak Influence 11799 | . 397 320 1020 432 1023 2363 . . . . 3216 . . . . 4266 . . . . 1168 408 3791 . . . . 3301 6160 . 922 4186 7929 11799 Initial 5074 | . . 154 94 379 90 427 . . . . . . . . . 154 . . . . 138 408 282 . . . . . 1732 . . 518 2511 5074 Average 4496 | . 184 196 588 333 796 826 . . . . 1062 . . . . 1884 . . . . 600 400 1774 . . . . 1148 4085 . 404 1663 5726 10792 Maximum Alert Level 5 | . 1 1 3 2 3 5 . . . . 5 . . . . 5 . . . . 4 2 5 . . . . 5 5 . 3 5 5 5 Low Security (%) 6 | 100 59 54 2 . 2 1 . . . . 8 . . . . 9 . . . . 33 . . . . . . 3 . . 48 . . 2 Level 1 6 | . 40 45 9 65 2 21 . . . . 1 . . . . 4 . . . . 6 25 10 . . . . 9 . . 10 . . . Level 2 13 | . . . 69 34 20 36 . . . . 27 . . . . 9 . . . . 2 74 11 . . . . 18 . . 7 8 . . Level 3 13 | . . . 19 . 74 10 . . . . 15 . . . . 6 . . . . 50 . 2 . . . . 32 . . 34 33 . . Level 4 10 | . . . . . . 19 . . . . 34 . . . . 11 . . . . 6 . 25 . . . . 11 . . . 26 . . Level 5 5 | . . . . . . 1 . . . . 4 . . . . 27 . . . . . . 15 . . . . 8 20 . . 4 3 2 High Security 44 | . . . . . . 8 . . . . 8 . . . . 30 . . . . . . 35 . . . . 15 79 . . 26 96 95 Max Security . | . . . . . . . . . . . . . . . . . . . . . . . . . . . . . . . . . . . Sterilizations 8 | . . . . . 1 . . . . . 1 . . . . 1 . . . . . . 1 . . . . 1 1 . . 1 1 . Squads Dispatched 399 | . 8 . 8 2 11 36 . . . . 51 . 1 . . 33 . 1 . 1 12 . 38 . . . 1 42 33 . . 44 37 40 Investigation 30 | . 7 . 4 1 2 3 . . . . 3 . 1 . . 1 . 1 . . 1 . 1 . . . . 2 . . . 1 1 1 Extermination 40 | . . . . . . 7 . . . . 12 . . . . 2 . . . . 1 . 3 . . . . 7 . . . 7 . 1 Reinforcement 56 | . 1 . 3 . 6 5 . . . . 8 . . . . 7 . . . . 3 . 4 . . . . 5 . . . 8 4 2 Assault 269 | . . . 1 1 3 21 . . . . 28 . . . . 22 . . . 1 6 . 28 . . . 1 28 33 . . 28 32 36 Garrison 4 | . . . . . . . . . . . . . . . . 1 . . . . 1 . 2 . . . . . . . . . . . Intercept . | . . . . . . . . . . . . . . . . . . . . . . . . . . . . . . . . . . . Searches Triggered . | . . . . . . . . . . . . . . . . . . . . . . . . . . . . . . . . . . . Data Miner Redirects 35 | . . . . . . . . . . . 11 . . . . 4 . . . . 2 . 5 . . . . 5 . . . 7 . 1 Construction Impeded 33 | . . . 1 . 2 4 . . . . 7 . . . . 4 . . . . 2 . 2 . . . . 1 . . . 6 4 . Haulers Reinforced 5 | . . . . . . 1 . . . . . . . . . 2 . . . . . . 1 . . . . . . . . 1 . . Active Scanning Responses . | . . . . . . . . . . . . . . . . . . . . . . . . . . . . . . . . . . . Cargo Convoy Interrupts 1 | . . . . . . . . . . . 1 . . . . . . . . . . . . . . . . . . . . . . . Stealth | -11 -10 -10 -9 -9 -8 -7 -7 -7 -7 -6 -6 -6 -6 -6 -5 -5 -5 -5 -5 -4 -4 -4 -4 -4 -4 -4 -3 -3 -3 -3 -2 -2 -1 -1 --------- Run | Scr Mat Min Mat Min Mat Fac Low Low Dat Pro Fac Low Low Zio Pro Fac Upp Upp Zhi Pro Fac Was Fac Upp Upp War Pro Res Arm Lab Res Tes Acc Com Distress Signals 46 | . 3 . 5 . 5 2 . . . . . . . . . 2 . . . . 1 . 1 . 1 . . 2 3 . 4 1 2 14 Communications Jammed 9 | . . . . . . . . . . . . . . . . . . . . . . . . . . . . 9 . . . . . . Distress Signals 6 | . . . . . . . . . . . . . . . . . . . . . . . . . . . . 6 . . . . . . Times Spotted 2738 | . 30 12 56 5 69 118 9 11 . 8 193 5 28 . 32 199 24 30 . 28 41 9 193 26 19 228 26 212 260 . 42 207 261 357 Peak Tracking Total 45 | . 4 3 9 3 9 10 4 6 . 3 14 4 4 . 10 18 9 7 . 6 9 6 14 7 7 20 8 15 22 . 6 21 16 45 Tactical Retreats 85 | . 2 2 1 . 4 1 . . . 1 8 1 3 . 6 6 . 2 . 3 2 2 6 1 2 9 1 2 3 . 4 1 2 10 Traps | -11 -10 -10 -9 -9 -8 -7 -7 -7 -7 -6 -6 -6 -6 -6 -5 -5 -5 -5 -5 -4 -4 -4 -4 -4 -4 -4 -3 -3 -3 -3 -2 -2 -1 -1 ------- Run | Scr Mat Min Mat Min Mat Fac Low Low Dat Pro Fac Low Low Zio Pro Fac Upp Upp Zhi Pro Fac Was Fac Upp Upp War Pro Res Arm Lab Res Tes Acc Com Traps Triggered 37 | . 2 . 1 . 2 1 . . . . 3 . . . . 6 . . . . 2 . 1 . . 4 . 3 . . . . 8 4 Indirectly 19 | . . . . . . . . . . . . . . . . 6 . . . . . . 1 . . 4 . 1 . . . . 6 1 Trap Hack Attempts . | . . . . . . . . . . . . . . . . . . . . . . . . . . . . . . . . . . . Triggered . | . . . . . . . . . . . . . . . . . . . . . . . . . . . . . . . . . . . Disarmed . | . . . . . . . . . . . . . . . . . . . . . . . . . . . . . . . . . . . Reprogrammed 1 | . 1 . . . . . . . . . . . . . . . . . . . . . . . . . . . . . . . . . Reused . | . . . . . . . . . . . . . . . . . . . . . . . . . . . . . . . . . . . Traps Extracted . | . . . . . . . . . . . . . . . . . . . . . . . . . . . . . . . . . . . Installed . | . . . . . . . . . . . . . . . . . . . . . . . . . . . . . . . . . . . Triggered 45 | . . . . . . . . 1 . 1 2 . . . . . . 2 . . . . 1 1 . 37 . . . . . . . . Machines | -11 -10 -10 -9 -9 -8 -7 -7 -7 -7 -6 -6 -6 -6 -6 -5 -5 -5 -5 -5 -4 -4 -4 -4 -4 -4 -4 -3 -3 -3 -3 -2 -2 -1 -1 ---------- Run | Scr Mat Min Mat Min Mat Fac Low Low Dat Pro Fac Low Low Zio Pro Fac Upp Upp Zhi Pro Fac Was Fac Upp Upp War Pro Res Arm Lab Res Tes Acc Com Machines Disabled 167 | . 3 10 8 . 5 20 1 1 . . 8 . 1 . 6 30 2 2 . 1 15 . 12 1 . 8 . 6 5 . 6 7 1 8 Max in Single Turn 9 | . 1 8 2 . 1 5 1 1 . . 5 . 1 . 2 6 2 1 . 1 4 . 9 1 . 2 . 1 1 . 1 1 1 2 Garrison Access 10 | . . . . . . 1 . . . . . . . . . 3 . . . . 2 . 1 . . . . 1 . . 2 . . . Phase Generator 1 | . . . . . . . . . . . . . . . . . . . . . . . . . . . . . . . . . . 1 Energy Cycler 2 | . . . . . . . . . . . . . . . . . . . . . . . . . . . . . 1 . . . 1 . Machines Sabotaged 3 | . 2 . 1 . . . . . . . . . . . . . . . . . . . . . . . . . . . . . . . Garrisons Compromised 1 | . . . . . . . . . . . 1 . . . . . . . . . . . . . . . . . . . . . . . Overloaded Fab Kills . | . . . . . . . . . . . . . . . . . . . . . . . . . . . . . . . . . . . Hacking | -11 -10 -10 -9 -9 -8 -7 -7 -7 -7 -6 -6 -6 -6 -6 -5 -5 -5 -5 -5 -4 -4 -4 -4 -4 -4 -4 -3 -3 -3 -3 -2 -2 -1 -1 --------- Run | Scr Mat Min Mat Min Mat Fac Low Low Dat Pro Fac Low Low Zio Pro Fac Upp Upp Zhi Pro Fac Was Fac Upp Upp War Pro Res Arm Lab Res Tes Acc Com Machines Accessed 86 | . 6 . 9 1 8 9 . 1 3 . 7 1 1 1 1 8 1 2 4 . 4 . 6 1 1 1 . 5 1 . 1 2 1 . Terminals 63 | . 6 . 9 . 7 8 . 1 . . 6 . 1 . 1 6 . 1 . . 2 . 6 . 1 . . 4 1 . . 2 1 . Fabricators . | . . . . . . . . . . . . . . . . . . . . . . . . . . . . . . . . . . . Repair Stations . | . . . . . . . . . . . . . . . . . . . . . . . . . . . . . . . . . . . Recycling Units . | . . . . . . . . . . . . . . . . . . . . . . . . . . . . . . . . . . . Scanalyzers . | . . . . . . . . . . . . . . . . . . . . . . . . . . . . . . . . . . . Garrison Access 9 | . . . . . 1 1 . . . . 1 . . . . 2 . . . . 2 . . . . . . 1 . . 1 . . . Total Hacks 250 | . 14 . 32 1 19 25 . 3 26 . 16 1 8 5 5 22 1 4 17 . 7 . 16 1 4 1 . 11 3 . 1 4 3 . Successful 153 | . 10 . 19 1 6 11 . 3 26 . 5 1 8 5 5 10 1 4 17 . 1 . 8 1 4 1 . 4 . . . 1 1 . Failed 96 | . 3 . 13 . 13 14 . . . . 11 . . . . 12 . . . . 6 . 8 . . . . 7 3 . 1 3 2 . Catastrophic 17 | . 1 . 2 . 3 2 . . . . 4 . . . . 2 . . . . 1 . . . . . . 1 . . 1 . . . Database Lockouts 1 | . 1 . . . . . . . . . . . . . . . . . . . . . . . . . . . . . . . . . Manual 97 | . 12 . 24 . 15 16 . . . . 6 . . . . 9 . . . . 2 . 8 . . . . 4 . . . 1 . . Terminals 182 | . 14 . 32 . 18 23 . 3 . . 15 . 8 . 5 17 . 3 . . 4 . 16 . 4 . . 10 3 . . 4 3 . Fabricators . | . . . . . . . . . . . . . . . . . . . . . . . . . . . . . . . . . . . Repair Stations . | . . . . . . . . . . . . . . . . . . . . . . . . . . . . . . . . . . . Recycling Units . | . . . . . . . . . . . . . . . . . . . . . . . . . . . . . . . . . . . Scanalyzers . | . . . . . . . . . . . . . . . . . . . . . . . . . . . . . . . . . . . Garrison Access 14 | . . . . . 1 2 . . . . 1 . . . . 5 . . . . 3 . . . . . . 1 . . 1 . . . Terminal Hacks 118 | . 4 . 11 1 2 7 . 3 26 . 3 1 8 5 5 6 1 4 17 . . . 5 1 4 1 . 2 . . . . 1 . Record 35 | . . . . . . . . 3 6 . . . 8 . 5 . . 3 5 . . . . 1 4 . . . . . . . . . Part Schematic 21 | . . . . . . . . . 12 . . . . 5 . . . . 4 . . . . . . . . . . . . . . . Robot Schematic 5 | . . . . . . . . . 5 . . . . . . . . . . . . . . . . . . . . . . . . . Robot Analysis 11 | . 1 . 5 . 1 . . . . . . . . . . . . . 4 . . . . . . . . . . . . . . . Prototype ID Bank 9 | . 1 . . . . 1 . . 3 . . . . . . . . . 4 . . . . . . . . . . . . . . . Open Door 5 | . . . . 1 . . . . . . . 1 . . . . 1 1 . . . . . . . 1 . . . . . . . . Level Access Points 1 | . . . . . . . . . . . . . . . . 1 . . . . . . . . . . . . . . . . . . Branch Access Points 4 | . . . . . . 1 . . . . 1 . . . . . . . . . . . 1 . . . . 1 . . . . . . Terminal Index 2 | . . . . . . . . . . . . . . . . 1 . . . . . . . . . . . . . . . . 1 . Alert Level 4 | . . . 1 . . 2 . . . . . . . . . 1 . . . . . . . . . . . . . . . . . . Unreport Threat 9 | . . . 2 . 1 2 . . . . . . . . . 3 . . . . . . . . . . . 1 . . . . . . Locate Traps 5 | . 1 . 1 . . . . . . . 1 . . . . . . . . . . . 2 . . . . . . . . . . . Reprogram Traps 1 | . 1 . . . . . . . . . . . . . . . . . . . . . . . . . . . . . . . . . Patrol Status 1 | . . . . . . . . . . . 1 . . . . . . . . . . . . . . . . . . . . . . . Hauler Manifests 1 | . . . 1 . . . . . . . . . . . . . . . . . . . . . . . . . . . . . . . Zone Layout 4 | . . . 1 . . 1 . . . . . . . . . . . . . . . . 2 . . . . . . . . . . . Fabricator Hacks . | . . . . . . . . . . . . . . . . . . . . . . . . . . . . . . . . . . . Repair Station Hacks . | . . . . . . . . . . . . . . . . . . . . . . . . . . . . . . . . . . . Recycling Unit Hacks . | . . . . . . . . . . . . . . . . . . . . . . . . . . . . . . . . . . . Scanalyzer . | . . . . . . . . . . . . . . . . . . . . . . . . . . . . . . . . . . . Garrison Access Hacks 4 | . . . . . 1 . . . . . . . . . . 1 . . . . 1 . . . . . . 1 . . . . . . Unlock Access 1 | . . . . . 1 . . . . . . . . . . . . . . . . . . . . . . . . . . . . . Seal Access 3 | . . . . . . . . . . . . . . . . 1 . . . . 1 . . . . . . 1 . . . . . . Unauthorized Hacks 31 | . 6 . 8 . 3 4 . . . . 2 . . . . 3 . . . . . . 3 . . . . 1 . . . 1 . . Terminals 31 | . 6 . 8 . 3 4 . . . . 2 . . . . 3 . . . . . . 3 . . . . 1 . . . 1 . . Track 4 | . . . 2 . . 1 . . . . . . . . . 1 . . . . . . . . . . . . . . . . . . Assimilate 2 | . . . . . . . . . . . . . . . . . . . . . . . 1 . . . . . . . . 1 . . Botnet 11 | . 1 . 2 . 2 1 . . . . 1 . . . . 1 . . . . . . 2 . . . . 1 . . . . . . Disrupt 2 | . . . . . . 1 . . . . . . . . . 1 . . . . . . . . . . . . . . . . . . Operators 4 | . . . 1 . 1 1 . . . . 1 . . . . . . . . . . . . . . . . . . . . . . . Sabotage 8 | . 5 . 3 . . . . . . . . . . . . . . . . . . . . . . . . . . . . . . . Fabricators . | . . . . . . . . . . . . . . . . . . . . . . . . . . . . . . . . . . . Repair Stations . | . . . . . . . . . . . . . . . . . . . . . . . . . . . . . . . . . . . Recycling Units . | . . . . . . . . . . . . . . . . . . . . . . . . . . . . . . . . . . . Scanalyzers . | . . . . . . . . . . . . . . . . . . . . . . . . . . . . . . . . . . . Garrison Access . | . . . . . . . . . . . . . . . . . . . . . . . . . . . . . . . . . . . Data Cores Recovered 3 | . 1 . . . . . . . . . 1 . . . . 1 . . . . . . . . . . . . . . . . . . Used 1 | . . . . . . . . . . . . . . . . 1 . . . . . . . . . . . . . . . . . . Hacking Detections 61 | . 3 . 8 . 7 8 . 1 . . 6 . 1 . . 7 . 1 . . 3 . 6 . 1 . . 4 1 . 1 2 1 . Full Trace Events 15 | . 1 . 2 . . 2 . . . . 3 . 1 . . 1 . 1 . . 1 . . . . . . 1 . . . 1 1 . Feedback Events 2 | . . . . . . 1 . . . . . . . . . . . . . . . . . . . . . . . . . 1 . . Corruption 2 | . . . . . . 1 . . . . . . . . . . . . . . . . . . . . . . . . . 1 . . Feedback Blocked . | . . . . . . . . . . . . . . . . . . . . . . . . . . . . . . . . . . . Robot Schematics Acquired 5 | . . . . . . . . . 5 . . . . . . . . . . . . . . . . . . . . . . . . . Robots Built . | . . . . . . . . . . . . . . . . . . . . . . . . . . . . . . . . . . . Authchips . | . . . . . . . . . . . . . . . . . . . . . . . . . . . . . . . . . . . Time . | . . . . . . . . . . . . . . . . . . . . . . . . . . . . . . . . . . . Total Robot Build Rating . | . . . . . . . . . . . . . . . . . . . . . . . . . . . . . . . . . . . Part Schematics Acquired 28 | . . . . . . . . . 12 . . . . 5 . . . . 4 . . . . . . . . . . . . 7 . . Parts Built . | . . . . . . . . . . . . . . . . . . . . . . . . . . . . . . . . . . . Authchips . | . . . . . . . . . . . . . . . . . . . . . . . . . . . . . . . . . . . Time . | . . . . . . . . . . . . . . . . . . . . . . . . . . . . . . . . . . . Total Part Build Rating . | . . . . . . . . . . . . . . . . . . . . . . . . . . . . . . . . . . . Parts Repaired . | . . . . . . . . . . . . . . . . . . . . . . . . . . . . . . . . . . . Time . | . . . . . . . . . . . . . . . . . . . . . . . . . . . . . . . . . . . Parts Recycled . | . . . . . . . . . . . . . . . . . . . . . . . . . . . . . . . . . . . Recycled Matter . | . . . . . . . . . . . . . . . . . . . . . . . . . . . . . . . . . . . Retrieved Matter . | . . . . . . . . . . . . . . . . . . . . . . . . . . . . . . . . . . . Retrieved Components . | . . . . . . . . . . . . . . . . . . . . . . . . . . . . . . . . . . . Parts Scanalyzed . | . . . . . . . . . . . . . . . . . . . . . . . . . . . . . . . . . . . Part Schematics Acquired . | . . . . . . . . . . . . . . . . . . . . . . . . . . . . . . . . . . . Parts Damaged . | . . . . . . . . . . . . . . . . . . . . . . . . . . . . . . . . . . . Bothacking | -11 -10 -10 -9 -9 -8 -7 -7 -7 -7 -6 -6 -6 -6 -6 -5 -5 -5 -5 -5 -4 -4 -4 -4 -4 -4 -4 -3 -3 -3 -3 -2 -2 -1 -1 ------------ Run | Scr Mat Min Mat Min Mat Fac Low Low Dat Pro Fac Low Low Zio Pro Fac Upp Upp Zhi Pro Fac Was Fac Upp Upp War Pro Res Arm Lab Res Tes Acc Com Used RIF Installer . | . . . . . . . . . . . . . . . . . . . . . . . . . . . . . . . . . . . Robots Hacked 2 | . . . . . . . . . 1 . . . . . . . . . . . 1 . . . . . . . . . . . . . Non-combat 1 | . . . . . . . . . . . . . . . . . . . . . 1 . . . . . . . . . . . . . Combat 1 | . . . . . . . . . 1 . . . . . . . . . . . . . . . . . . . . . . . . . Robot Hacks Applied 2 | . . . . . . . . . 1 . . . . . . . . . . . 1 . . . . . . . . . . . . . parse_system 1 | . . . . . . . . . 1 . . . . . . . . . . . . . . . . . . . . . . . . . find_chute 1 | . . . . . . . . . . . . . . . . . . . . . 1 . . . . . . . . . . . . . Relay Couplers Released 18 | . . . . . . 2 . . . . . . . . . 2 . . . . 4 . 4 . . . . 1 . . 5 . . . Machine Destruction 18 | . . . . . . 2 . . . . . . . . . 2 . . . . 4 . 4 . . . . 1 . . 5 . . . Fabnet Peak Effective % . | . . . . . . . . . . . . . . . . . . . . . . . . . . . . . . . . . . . Robots Rewired 14 | . . 1 . . . . . . . . . . . . . . 2 . . . . . . 2 . . 2 . 6 . 1 . . . Allies Hacked 1 | . . . . . . . . . . . . . . . . . . . . . . . . . . . . . . . . 1 . . Hacks Repelled . | . . . . . . . . . . . . . . . . . . . . . . . . . . . . . . . . . . . Allies | -11 -10 -10 -9 -9 -8 -7 -7 -7 -7 -6 -6 -6 -6 -6 -5 -5 -5 -5 -5 -4 -4 -4 -4 -4 -4 -4 -3 -3 -3 -3 -2 -2 -1 -1 -------- Run | Scr Mat Min Mat Min Mat Fac Low Low Dat Pro Fac Low Low Zio Pro Fac Upp Upp Zhi Pro Fac Was Fac Upp Upp War Pro Res Arm Lab Res Tes Acc Com Total Allies 26 | . . 5 . 1 . . . . . 1 3 . . . . . 2 . . . 1 . 1 2 . . 2 . 6 . 1 1 . . Largest Group 6 | . . 3 3 1 1 . . . . 1 3 . . . . . 2 . . . 1 . 1 2 . . 2 . 6 . 1 1 . . Highest-Rated Group 358 | . . 40 40 31 31 . . . . 96 93 . . . . . 78 . . . 26 . 10 77 . . 90 . 358 . 30 45 . . Highest-Rated Ally 96 | . . 31 16 31 31 . . . . 96 31 . . . . . 49 . . . 26 . 10 47 . . 48 . 65 . 30 45 . . Total Orders 25 | . . . . . . . 2 . . . 2 . . . . . . . . . 8 . 1 . . . . . 12 . . . . . STAY 15 | . . . . . . . . . . . . . . . . . . . . . 4 . 1 . . . . . 10 . . . . . FOLLOW 5 | . . . . . . . . . . . . . . . . . . . . . 3 . . . . . . . 2 . . . . . EXPLORE 4 | . . . . . . . 2 . . . 2 . . . . . . . . . . . . . . . . . . . . . . . RETURN 1 | . . . . . . . . . . . . . . . . . . . . . 1 . . . . . . . . . . . . . Ally Attacks 118 | . . 12 15 . 20 . . . . 13 20 . . . . . 8 . . . . . . 3 . . 10 . 14 . 3 . . . Total Damage 2427 | . . 132 147 . 250 . . . . 420 293 . . . . . 122 . . . . . . 99 . . 331 . 585 . 48 . . . Kills 16 | . . . 4 . 2 . . . . 1 4 . . . . . 1 . . . . . . 1 . . . . 3 . . . . . Allies Corrupted 3 | . . . . . . . . . . . . . . . . . . . . . . . . 2 . . . . 1 . . . . . Allies Melted 3 | . . 1 . . . . . . . . . . . . . . . . . . . . . . . . . . . . 1 . . 1 Intel | -11 -10 -10 -9 -9 -8 -7 -7 -7 -7 -6 -6 -6 -6 -6 -5 -5 -5 -5 -5 -4 -4 -4 -4 -4 -4 -4 -3 -3 -3 -3 -2 -2 -1 -1 ------- Run | Scr Mat Min Mat Min Mat Fac Low Low Dat Pro Fac Low Low Zio Pro Fac Upp Upp Zhi Pro Fac Was Fac Upp Upp War Pro Res Arm Lab Res Tes Acc Com Robot Analysis Total 11 | . 1 . 5 . 1 . . . . . . . . . . . . . 4 . . . . . . . . . . . . . . . Derelict Logs Recovered . | . . . . . . . . . . . . . . . . . . . . . . . . . . . . . . . . . . . Drone Launches 5 | . . . . . . . 2 . . . 2 . . . . . . . . . 1 . . . . . . . . . . . . . Drone Recoveries 3 | . . . . . . . 2 . . . . . . . . . . . . . 1 . . . . . . . . . . . . . Exploration | -11 -10 -10 -9 -9 -8 -7 -7 -7 -7 -6 -6 -6 -6 -6 -5 -5 -5 -5 -5 -4 -4 -4 -4 -4 -4 -4 -3 -3 -3 -3 -2 -2 -1 -1 ------------- Run | Scr Mat Min Mat Min Mat Fac Low Low Dat Pro Fac Low Low Zio Pro Fac Upp Upp Zhi Pro Fac Was Fac Upp Upp War Pro Res Arm Lab Res Tes Acc Com Turns Passed 97776 | 13 1942 994 2449 686 3155 4134 1253 1735 224 909 9339 1097 1633 2605 2594 2381 1323 1942 211 1781 1081 172 2662 1713 1252 6904 5609 5461 1906 309 1022 3722 1841 21722 Spaces Moved 31306 | 26 1253 637 1405 506 1117 1608 696 1045 136 542 1596 669 890 1135 1044 743 732 1050 129 1051 580 150 580 936 634 1464 1592 1100 543 29 551 730 442 3965 Core 916 | 25 . . . . . . . . . . . . . . . . . . . . . 125 178 . . . 139 . . . . . . 449 Treads 24136 | . . . . . . 273 696 1045 136 542 1596 669 890 1135 1044 743 732 1050 129 1051 580 25 402 936 634 1464 1453 1100 543 29 551 730 442 3516 Legs 6254 | 1 1253 637 1405 506 1117 1335 . . . . . . . . . . . . . . . . . . . . . . . . . . . . Wheels . | . . . . . . . . . . . . . . . . . . . . . . . . . . . . . . . . . . . Hover . | . . . . . . . . . . . . . . . . . . . . . . . . . . . . . . . . . . . Flight . | . . . . . . . . . . . . . . . . . . . . . . . . . . . . . . . . . . . Fastest Speed 50 | 50 120 120 120 120 120 130 160 160 160 160 160 160 160 160 160 160 160 160 160 145 152 50 50 152 160 160 170 160 160 160 160 158 155 145 Average Speed 199 | 52 120 120 120 120 129 179 160 160 160 160 160 160 160 160 215 160 160 160 160 154 152 67 127 159 160 165 338 173 160 160 160 163 157 433 Slowest Speed 2600 | 120 120 120 120 120 130 200 160 160 160 160 240 160 160 160 240 160 160 160 160 160 152 152 152 160 160 170 2100 260 160 160 160 166 158 2600 Overloaded Moves . | . . . . . . . . . . . . . . . . . . . . . . . . . . . . . . . . . . . Propulsion Burnouts . | . . . . . . . . . . . . . . . . . . . . . . . . . . . . . . . . . . . Robots Hopped . | . . . . . . . . . . . . . . . . . . . . . . . . . . . . . . . . . . . Cave-ins Triggered . | . . . . . . . . . . . . . . . . . . . . . . . . . . . . . . . . . . . Exploration Rate (%) 67 | 4 97 97 97 99 91 34 97 94 74 77 39 81 95 86 96 27 93 96 61 98 19 99 19 85 88 91 95 30 45 6 23 52 18 55 Regions Visited 34 Branch Regions 22 Pre-discovered Areas 6 | . . . . . . . . . 1 . . . . 2 . . . . 3 . . . . . . . . . . . . . . . Known Exits Taken 10 | . . . . . . 1 . . . 1 1 . 1 . 1 1 . . . 1 . . 1 . . . . 1 . . 1 . . . Unknown Exits Taken 22 | 1 1 1 1 1 1 . 1 1 1 . . 1 . 1 . . 1 1 1 . . . . 1 1 1 1 . 1 1 . 1 1 . Scrap Searched . | . . . . . . . . . . . . . . . . . . . . . . . . . . . . . . . . . . . Spaces Dug 621 | . . . . . 4 8 15 . . . 5 . . 8 4 63 101 37 . 56 3 . 20 51 38 30 9 24 99 . . 4 31 11 Terrain Destroyed 4706 | . 15 26 79 . 72 171 58 39 . 14 353 . 90 8 93 540 213 86 . 154 79 . 234 91 55 343 174 216 303 . . 188 386 626 Melee 8 | . . . . . . . . . . . . . . 8 . . . . . . . . . . . . . . . . . . . . Projectile 271 | . . . . . . 5 . 1 . . 24 . . . . 14 1 44 . 4 9 . 6 1 33 4 24 27 10 . . 27 2 35 AOE 4427 | . 15 26 79 . 72 166 58 38 . 14 329 . 90 . 93 526 212 42 . 150 70 . 228 90 22 339 150 189 293 . . 161 384 591 Terrain Rammed . | . . . . . . . . . . . . . . . . . . . . . . . . . . . . . . . . . . . Walls Destroyed . | . . . . . . . . . . . . . . . . . . . . . . . . . . . . . . . . . . . Machines Disabled . | . . . . . . . . . . . . . . . . . . . . . . . . . . . . . . . . . . . Actions | -11 -10 -10 -9 -9 -8 -7 -7 -7 -7 -6 -6 -6 -6 -6 -5 -5 -5 -5 -5 -4 -4 -4 -4 -4 -4 -4 -3 -3 -3 -3 -2 -2 -1 -1 --------- Run | Scr Mat Min Mat Min Mat Fac Low Low Dat Pro Fac Low Low Zio Pro Fac Upp Upp Zhi Pro Fac Was Fac Upp Upp War Pro Res Arm Lab Res Tes Acc Com Total 63772 | 25 1573 792 1974 580 2668 2623 816 1081 145 560 8008 683 1039 1405 1322 1791 870 1303 134 1197 773 219 2460 1137 831 5922 1806 4612 1522 292 693 3167 1549 8200 Wait 26406 | . 256 101 450 67 1443 768 97 5 . . 6025 4 81 . 189 655 57 123 . 54 51 50 1539 75 70 4109 66 3030 605 264 54 1967 725 3426 Move 31273 | 25 1252 636 1404 505 1116 1607 695 1044 135 541 1595 668 889 1134 1043 742 731 1049 128 1050 580 149 579 935 633 1463 1591 1099 542 28 550 729 441 3965 Hop . | . . . . . . . . . . . . . . . . . . . . . . . . . . . . . . . . . . . Pick Up 125 | . . 3 . 2 . 3 . 1 . . 1 . . . 2 1 1 4 1 4 5 . 11 1 6 4 8 20 4 . 1 13 3 26 Fast Attach 85 | . . . . . . . . 1 . . 2 . 2 2 2 1 1 2 2 10 2 . 2 1 5 2 2 10 2 . . 11 4 19 Attach 109 | . . 2 3 . 2 5 1 . 4 . 3 . 1 2 3 2 1 4 . 1 5 1 8 2 4 1 4 18 1 . 2 6 3 20 Detach 73 | . . . 1 . . 1 . . 4 . 4 . . 4 4 6 1 . . 1 2 5 4 . 3 2 . 3 3 . 2 7 2 14 Swap 501 | . . . 8 . 7 59 8 6 1 2 57 . 10 1 5 50 11 9 . 4 5 . 28 3 6 36 5 33 37 . 1 36 25 48 Drop 251 | . 1 1 2 1 1 5 . 1 . . 9 . . 1 3 5 4 4 3 16 6 9 15 2 11 6 10 32 10 . 3 28 9 53 Fire 4281 | . 59 37 98 2 93 169 15 23 . 16 305 8 56 1 64 327 48 108 . 57 112 5 273 52 93 299 103 354 252 . 78 363 329 482 Melee 269 | . . . . . . . . . 1 . . . . 260 7 . . . . . 1 . . . . . . . . . . . . . Ram . | . . . . . . . . . . . . . . . . . . . . . . . . . . . . . . . . . . . Kick 31 | . 5 3 8 3 6 6 . . . . . . . . . . . . . . . . . . . . . . . . . . . . Crush 162 | . . . . . . . . . . . 7 3 . . . 1 . . . . 4 . 1 . . . . 1 . . . 5 2 138 Escape Stasis 30 | . . . . . . . . . . . . . . . . 1 . . . . . . . . . . . 12 6 . . 2 6 3 Rewire 176 | . . 9 . . . . . . . 1 . . . . . . 15 . . . . . . 66 . . 17 . 60 . 2 . . 6 Trap . | . . . . . . . . . . . . . . . . . . . . . . . . . . . . . . . . . . . Miscellaneous . | . . . . . . . . . . . . . . . . . . . . . . . . . . . . . . . . . . . Route ------- -11/Scrapyard -10/Materials (discovered 4 exits: *Mat x3 / [*Min]) -10/Mines (discovered 2 exits: *Mat x2) -9/Materials (discovered 5 exits: *Mat x3 / *Min x2) -9/Mines (discovered 2 exits: *Mat x2) -8/Materials (discovered 4 exits: *Fac x3 / Gar) -7/Factory (discovered 6 exits: *Fac x2 / Sto x2 / *Low x2) -7/Lower Caves (discovered 2 exits: *Low / *Dat) -7/Lower Caves (discovered 2 exits: *Fac / *Dat) -7/Data Miner -6/Proximity Caves -6/Factory (discovered 5 exits: *Fac / *Low x2 / Ext x2) -6/Lower Caves -6/Lower Caves (discovered 2 exits: *Fac / *Zio) -6/Zion -5/Proximity Caves -5/Factory (discovered 5 exits: *Fac x4 / *Upp) -5/Upper Caves -5/Upper Caves -5/Zhirov -4/Proximity Caves -4/Factory (discovered 2 exits: *Res / *Upp) -4/Waste -4/Factory (discovered 2 exits: *Upp x2) -4/Upper Caves (discovered 2 exits: *Upp / *War) -4/Upper Caves (discovered 2 exits: *Res / *War) -4/Warlord -3/Proximity Caves -3/Research (discovered 3 exits: *Arm / *Qua x2) -3/Armory -3/Lab -2/Research (discovered 2 exits: *Tes x2) -2/Testing -1/Access -1/Command (discovered 2 exits: Sur x2) By MAIN.C's Side History --------- Turn | Location | Event 1 | -11/Scrapyard | Discovered new exit (range 3) 14 | -11/Scrapyard | Entered Materials 95 | -10/Materials | Discovered new exit (range 15) 262 | -10/Materials | Discovered new exit (range 15) 305 | -10/Materials | Build established: Mutant 498 | -10/Materials | Discovered new exit (range 13) 586 | -10/Materials | Central database locked down 706 | -10/Materials | Discovered new exit (range 8) 1956 | -10/Materials | Entered Mines 2007 | -10/Mines | Received a Rocket Launcher from a helpful Derelict 2026 | -10/Mines | Deemed a non-threat by the Exiles lab entrance 2143 | -10/Mines | Discovered new exit (range 6) 2148 | -10/Mines | Core integrity fell below 50% 2214 | -10/Mines | Received a Mining Laser from a helpful Derelict 2571 | -10/Mines | Discovered new exit (range 7) 2940 | -10/Mines | Assisted by bots powering up and referring to "LRC-V3" 2950 | -10/Mines | Entered Materials 2950 | -9/Materials | Accompanied by 3 allies 2950 | -9/Materials | Evolved 2 slots: Propulsion x1, Utility x1 3286 | -9/Materials | Destroyed 10 combat bots 3383 | -9/Materials | Discovered new exit (range 4) 3601 | -9/Materials | Discovered new exit (range 10) 3810 | -9/Materials | Discovered new exit (range 10) 4060 | -9/Materials | Discovered new exit (range 16) 4487 | -9/Materials | Discovered new exit (range 7) 4950 | -9/Materials | First assault squad dispatched 5399 | -9/Materials | Entered Mines 5400 | -9/Mines | Met a Derelict testing a Signal Generator 5407 | -9/Mines | Found Signal Generator 5528 | -9/Mines | Met a Derelict shopkeep closing up shop 5612 | -9/Mines | Discovered new exit (range 5) 5744 | -9/Mines | Discovered new exit (range 7) 6085 | -9/Mines | Entered Materials 6085 | -8/Materials | Accompanied by 1 ally 6085 | -8/Materials | Evolved 2 slots: Utility x2 6257 | -8/Materials | Lost 5 parts (1p2n2w) 6267 | -8/Materials | Destroyed 11 combat bots 6435 | -8/Materials | Discovered new exit (range 16) 6678 | -8/Materials | Discovered new exit (range 16) 6894 | -8/Materials | Discovered new exit (range 16) 7023 | -8/Materials | Identified exit to Garrison 7285 | -8/Materials | First assault squad dispatched 8218 | -8/Materials | Destroyed 9 combat bots 8327 | -8/Materials | Sterilization system engaged 8327 | -8/Materials | Non-combat units ordered to evacuate 8427 | -8/Materials | Combat units ordered to evacuate 8627 | -8/Materials | Ambient heat levels rising (+10) 8777 | -8/Materials | Ambient heat levels rising (+10) 8927 | -8/Materials | Ambient heat levels rising (+10) 9077 | -8/Materials | Ambient heat levels rising (+10) 9227 | -8/Materials | Ambient heat levels rising (+10) 9240 | -8/Materials | Entered Factory 9240 | -7/Factory | Evolved 2 slots: Power x1, Utility x1 9320 | -7/Factory | Discovered new exit (range 5) 9326 | -7/Factory | Identified exit to Factory 9333 | -7/Factory | Identified exit to Storage 9333 | -7/Factory | Identified exit to Lower Caves 11640 | -7/Factory | First assault squad dispatched 11681 | -7/Factory | Discovered exit to Factory (range 16) 11831 | -7/Factory | Destroyed 7 combat bots 12956 | -7/Factory | Destroyed 7 combat bots 13017 | -7/Factory | High security lockdown imminent 13097 | -7/Factory | High security lockdown engaged 13218 | -7/Factory | Lost 3 parts (1p2u) 13225 | -7/Factory | Destroyed 11 combat bots 13330 | -7/Factory | Destroyed 15 combat bots 13374 | -7/Factory | Entered Lower Caves 13375 | -7/Lower Caves | A Derelict revealed a hidden shortcut to meet someone special 13680 | -7/Lower Caves | Attracted the attention of an 0b10 checkpoint 14047 | -7/Lower Caves | Encountered a Warlord checkpoint 14254 | -7/Lower Caves | Discovered new exit (range 15) 14627 | -7/Lower Caves | Entered another Lower Caves area 14690 | -7/Lower Caves | Discovered exit to Factory (range 8) 15291 | -7/Lower Caves | Attracted the attention of an 0b10 base 15317 | -7/Lower Caves | Destroyed 7 combat bots 15343 | -7/Lower Caves | Learned Research security intel 15343 | -7/Lower Caves | Learned Extension garrison access intel 15828 | -7/Lower Caves | Discovered new exit (range 7) 16156 | -7/Lower Caves | Attracted the attention of an 0b10 checkpoint 16362 | -7/Lower Caves | Entered Data Miner 16363 | -7/Data Miner | Discovered new exit (range 6) 16394 | -7/Data Miner | Met Data Miner 16429 | -7/Data Miner | Learned location of Section 7 (-3) 16429 | -7/Data Miner | Acquired the access code to Warlord's prototype stash 16450 | -7/Data Miner | Received God Mode back door access code from Data Miner 16586 | -7/Data Miner | Entered Proximity Caves 16701 | -6/Proximity Caves | Escorted by Enhanced Grunt 16944 | -6/Proximity Caves | Spotted B-75 Beast 17097 | -6/Proximity Caves | Attracted the attention of an 0b10 checkpoint 17310 | -6/Proximity Caves | Discovered exit to Factory (range 9) 17495 | -6/Proximity Caves | Entered Factory 17495 | -6/Factory | Evolved 2 slots: Power x1, Utility x1 17702 | -6/Factory | Incoming investigation squad redirected 17810 | -6/Factory | Identified exit to Lower Caves 17810 | -6/Factory | Identified exit to Extension 18331 | -6/Factory | Destroyed 7 combat bots 18349 | -6/Factory | Discovered new exit (range 8) 18453 | -6/Factory | Destroyed 7 combat bots 18498 | -6/Factory | Incoming investigation squad redirected 18585 | -6/Factory | Build established: Generator-Mutant 18614 | -6/Factory | Allied Derelicts emerged from ambush trap array 18895 | -6/Factory | First assault squad dispatched 20544 | -6/Factory | Cargo convoy interrupted 20562 | -6/Factory | Incoming assault squad redirected 21717 | -6/Factory | Incoming assault squad redirected 22224 | -6/Factory | Destroyed 7 combat bots 22411 | -6/Factory | Incoming assault squad redirected 23118 | -6/Factory | Incoming assault squad redirected 23810 | -6/Factory | Incoming assault squad redirected 25211 | -6/Factory | Incoming assault squad redirected 25569 | -6/Factory | Incoming assault squad redirected 25571 | -6/Factory | Incoming assault squad redirected 25920 | -6/Factory | Incoming assault squad redirected 26039 | -6/Factory | High security lockdown imminent 26119 | -6/Factory | High security lockdown engaged 26314 | -6/Factory | Destroyed 13 combat bots 26423 | -6/Factory | Destroyed 8 combat bots 26495 | -6/Factory | Destroyed 9 combat bots 26541 | -6/Factory | Sterilization system engaged 26541 | -6/Factory | Non-combat units ordered to evacuate 26560 | -6/Factory | Destroyed 19 combat bots 26641 | -6/Factory | Combat units ordered to evacuate 26834 | -6/Factory | Entered Lower Caves 27370 | -6/Lower Caves | Spotted B-75 Beast 27470 | -6/Lower Caves | Discovered new exit (range 12) 27728 | -6/Lower Caves | Encountered a Warlord checkpoint 27931 | -6/Lower Caves | Entered another Lower Caves area 27931 | -6/Lower Caves | Discovered new exit (range 17) 28109 | -6/Lower Caves | Attracted the attention of an 0b10 base 28240 | -6/Lower Caves | Learned Armory security intel 28240 | -6/Lower Caves | Learned Research stockpile data 28240 | -6/Lower Caves | Learned Armory trap positions 28240 | -6/Lower Caves | Learned 6 Proximity Caves zone layouts 28240 | -6/Lower Caves | Learned 6 Upper Caves zone layouts 28240 | -6/Lower Caves | Identified exit to Zion 28240 | -6/Lower Caves | Learned 8 Factory zone layouts 28240 | -6/Lower Caves | Learned location of 1 exit from Proximity Caves 28723 | -6/Lower Caves | Encountered a Warlord checkpoint 29564 | -6/Lower Caves | Entered Zion 29641 | -6/Zion | Discovered new exit (range 19) 29717 | -6/Zion | System corruption cleaned by Quarantine Array 29877 | -6/Zion | Learned location of Quarantine (-3) 29919 | -6/Zion | Found Unknown Piercing Weapon 29919 | -6/Zion | Identified CR-A16's Pointy Stick 30148 | -6/Zion | Given A8's code to call for help 30354 | -6/Zion | Given the Hacking Drone Bay 30357 | -6/Zion | Found Prototype Device 30357 | -6/Zion | Identified Hacking Drone Bay 32169 | -6/Zion | Entered Proximity Caves 32170 | -5/Proximity Caves | Identified exit to Factory 32642 | -5/Proximity Caves | Attracted the attention of an 0b10 checkpoint 32817 | -5/Proximity Caves | Spotted B-75 Beast 32859 | -5/Proximity Caves | Revealed the true nature of CR-A16's Pointy Stick 32862 | -5/Proximity Caves | Destroyed B-75 Beast 32877 | -5/Proximity Caves | Found Quantum Capacitor 32884 | -5/Proximity Caves | Lost 3 parts (2n1w) 33375 | -5/Proximity Caves | Received a Behemoth hack from an annoying Tinkerer 33757 | -5/Proximity Caves | Destroyed 10 combat bots 33794 | -5/Proximity Caves | Learned Extension garrison access intel 33794 | -5/Proximity Caves | Learned Armory terminal intel 33794 | -5/Proximity Caves | Learned Extension security intel 33794 | -5/Proximity Caves | Learned Research stockpile data 33794 | -5/Proximity Caves | Learned Factory trap positions 33837 | -5/Proximity Caves | Attracted the attention of an 0b10 base 34763 | -5/Proximity Caves | Entered Factory 34763 | -5/Factory | Evolved 2 slots: Propulsion x1, Utility x1 34764 | -5/Factory | Identified exit to Upper Caves 34765 | -5/Factory | Loaded intel: 103 trap records 34781 | -5/Factory | Identified exit to Factory 35140 | -5/Factory | Destroyed 10 combat bots 35317 | -5/Factory | Destroyed 11 combat bots 35415 | -5/Factory | Incoming investigation squad redirected 35459 | -5/Factory | Destroyed 11 combat bots 35663 | -5/Factory | First assault squad dispatched 35685 | -5/Factory | Incoming assault squad redirected 35970 | -5/Factory | Garrison activated, responded to threat 36073 | -5/Factory | Incoming assault squad redirected 36284 | -5/Factory | Incoming assault squad redirected 36427 | -5/Factory | High security lockdown imminent 36451 | -5/Factory | Destroyed 10 combat bots 36507 | -5/Factory | High security lockdown engaged 36699 | -5/Factory | Destroyed 9 combat bots 36774 | -5/Factory | Destroyed 10 combat bots 36829 | -5/Factory | Sterilization system engaged 36829 | -5/Factory | Non-combat units ordered to evacuate 36901 | -5/Factory | Destroyed 34 combat bots 36929 | -5/Factory | Combat units ordered to evacuate 37003 | -5/Factory | Destroyed 9 combat bots 37129 | -5/Factory | Ambient heat levels rising (+10) 37144 | -5/Factory | Entered Upper Caves 37179 | -5/Upper Caves | Attracted the attention of an 0b10 outpost 37193 | -5/Upper Caves | System corruption reached 10% 37217 | -5/Upper Caves | Destroyed 9 combat bots 37728 | -5/Upper Caves | Found Launcher Loader 37757 | -5/Upper Caves | Attacked by a faux Warlord 37847 | -5/Upper Caves | Found Quantum Capacitor 37913 | -5/Upper Caves | Attracted the attention of an 0b10 checkpoint 38146 | -5/Upper Caves | Discovered new exit (range 21) 38467 | -5/Upper Caves | Entered another Upper Caves area 39003 | -5/Upper Caves | Ambushed by wild Derelicts 39169 | -5/Upper Caves | Attracted the attention of an 0b10 checkpoint 39301 | -5/Upper Caves | Spotted B-75 Beast 39362 | -5/Upper Caves | Destroyed B-75 Beast 40002 | -5/Upper Caves | Attracted the attention of an 0b10 base 40048 | -5/Upper Caves | Destroyed 7 combat bots 40109 | -5/Upper Caves | Learned Armory security intel 40109 | -5/Upper Caves | Learned Factory emergency access door positions 40109 | -5/Upper Caves | Learned Armory trap positions 40380 | -5/Upper Caves | Discovered new exit (range 14) 40409 | -5/Upper Caves | Entered Zhirov 40410 | -5/Zhirov | Discovered new exit (range 3) 40439 | -5/Zhirov | Met Zhirov 40468 | -5/Zhirov | Learned location of Testing (-2) 40468 | -5/Zhirov | Learned location of Command (-1) 40482 | -5/Zhirov | Zhirov requested help retrieving the SGEMP Prototype 40620 | -5/Zhirov | Entered Proximity Caves 40665 | -4/Proximity Caves | Lost 3 parts (2u1w) 40667 | -4/Proximity Caves | Attracted the attention of an 0b10 checkpoint 41293 | -4/Proximity Caves | Found Supercharged Integrated Dissipator 41293 | -4/Proximity Caves | Installed Supercharged Integrated Dissipator, increased core heat dissipation (+40) 41899 | -4/Proximity Caves | Attracted the attention of an 0b10 outpost 41951 | -4/Proximity Caves | Destroyed 13 combat bots 42401 | -4/Proximity Caves | Entered Factory 42401 | -4/Factory | Evolved 2 slots: Utility x2 42771 | -4/Factory | Discovered new exit (range 3) 42841 | -4/Factory | Garrison activated, responded to threat 42901 | -4/Factory | First assault squad dispatched 42901 | -4/Factory | Destroyed 15 combat bots 42911 | -4/Factory | Identified exit to Upper Caves 43174 | -4/Factory | Incoming assault squad redirected 43403 | -4/Factory | Incoming investigation squad redirected 43413 | -4/Factory | Discovered new exit (range 5) 43482 | -4/Factory | Sucked down chute 43482 | -4/Factory | Entered Waste 43493 | -4/Waste | Spotted C-40 Crusher 43497 | -4/Waste | EMP discharged 43497 | -4/Waste | System corruption reached 10% 43511 | -4/Waste | Spotted C-40 Crusher 43511 | -4/Waste | Spotted C-40 Crusher 43524 | -4/Waste | Crushed by Compactor (1 part destroyed) 43527 | -4/Waste | Crushed by Compactor (0 parts destroyed, 1 dropped) 43530 | -4/Waste | Crushed by Compactor (1 part destroyed) 43532 | -4/Waste | Spotted C-40 Crusher 43566 | -4/Waste | Spotted C-40 Crusher 43569 | -4/Waste | Spotted C-40 Crusher 43597 | -4/Waste | EMP discharged 43602 | -4/Waste | Discovered new exit (range 11) 43654 | -4/Waste | Entered Factory 43799 | -4/Factory | Build established: Mutant 43808 | -4/Factory | Found Centrium Heavy Armor Plating 43904 | -4/Factory | First assault squad dispatched 43920 | -4/Factory | Incoming assault squad redirected 44048 | -4/Factory | Garrison activated, responded to threat 44113 | -4/Factory | Build established: Generator-Mutant 44199 | -4/Factory | Destroyed 11 combat bots 44269 | -4/Factory | Incoming assault squad redirected 44317 | -4/Factory | Incoming investigation squad redirected 44428 | -4/Factory | Incoming assault squad redirected 44435 | -4/Factory | Found Quantum Capacitor 44436 | -4/Factory | Found Tesla Bomb Launcher 44681 | -4/Factory | Incoming assault squad redirected 45370 | -4/Factory | High security lockdown imminent 45450 | -4/Factory | High security lockdown engaged 45541 | -4/Factory | Destroyed 13 combat bots 45645 | -4/Factory | Destroyed 11 combat bots 45790 | -4/Factory | Destroyed 7 combat bots 45866 | -4/Factory | Destroyed 7 combat bots 45999 | -4/Factory | Destroyed 15 combat bots 46018 | -4/Factory | Sterilization system engaged 46018 | -4/Factory | Non-combat units ordered to evacuate 46041 | -4/Factory | Destroyed 13 combat bots 46098 | -4/Factory | Destroyed 8 combat bots 46118 | -4/Factory | Combat units ordered to evacuate 46316 | -4/Factory | Entered Upper Caves 46395 | -4/Upper Caves | A Derelict revealed a hidden shortcut to "reach the base" 46484 | -4/Upper Caves | Attracted the attention of an 0b10 checkpoint 46646 | -4/Upper Caves | Spotted B-86 Titan 46789 | -4/Upper Caves | Destroyed 8 combat bots 46820 | -4/Upper Caves | Attracted the attention of an 0b10 outpost 46859 | -4/Upper Caves | Destroyed 7 combat bots 46985 | -4/Upper Caves | Discovered new exit (range 10) 47613 | -4/Upper Caves | Found Launcher Loader 48029 | -4/Upper Caves | Entered another Upper Caves area 48030 | -4/Upper Caves | Encountered a Warlord checkpoint 48042 | -4/Upper Caves | Discovered new exit (range 6) 48495 | -4/Upper Caves | Found Hellfire Missile Launcher 48546 | -4/Upper Caves | Attracted the attention of an 0b10 base 48586 | -4/Upper Caves | Destroyed 7 combat bots 48612 | -4/Upper Caves | Learned Research terminal intel 48612 | -4/Upper Caves | Learned Extension trap positions 49270 | -4/Upper Caves | Discovered new exit (range 5) 49281 | -4/Upper Caves | Entered Warlord 49310 | -4/Warlord | Found Com. Tesla Bomb Launcher 49336 | -4/Warlord | System corruption cleaned by Quarantine Array 49779 | -4/Warlord | Met Warlord 49804 | -4/Warlord | Warlord's base attacked by MAIN.C 49997 | -4/Warlord | Destroyed 7 combat bots 50150 | -4/Warlord | Spotted Executioner 50154 | -4/Warlord | Warlord forces counterattacked 50206 | -4/Warlord | Spotted Executioner 50208 | -4/Warlord | Spotted Striker 50214 | -4/Warlord | Destroyed Executioner 50214 | -4/Warlord | Destroyed Striker 50237 | -4/Warlord | Destroyed 8 combat bots 50258 | -4/Warlord | Discovered new exit (range 14) 50304 | -4/Warlord | Spotted Striker 50313 | -4/Warlord | Spotted Striker 50317 | -4/Warlord | Spotted Executioner 50479 | -4/Warlord | Warlord base infiltrated, sounded retreat 50513 | -4/Warlord | Spotted Striker 50520 | -4/Warlord | Destroyed Striker 50524 | -4/Warlord | Spotted Executioner 50604 | -4/Warlord | Spotted Executioner 50604 | -4/Warlord | Spotted Executioner 50604 | -4/Warlord | Spotted Executioner 50815 | -4/Warlord | Spotted Striker 50817 | -4/Warlord | Destroyed Striker 51014 | -4/Warlord | Spotted Striker 51018 | -4/Warlord | Destroyed Striker 51145 | -4/Warlord | Spotted Striker 51147 | -4/Warlord | Destroyed Striker 51349 | -4/Warlord | Spotted Executioner 51349 | -4/Warlord | Spotted Striker 51355 | -4/Warlord | Destroyed Executioner 51355 | -4/Warlord | Destroyed Striker 51377 | -4/Warlord | Destroyed 12 combat bots 51395 | -4/Warlord | Spotted Executioner 51579 | -4/Warlord | Spotted Striker 51587 | -4/Warlord | Destroyed Striker 51787 | -4/Warlord | Spotted Striker 52086 | -4/Warlord | Spotted Striker 52090 | -4/Warlord | Destroyed Striker 52103 | -4/Warlord | Destroyed Executioner 52130 | -4/Warlord | Destroyed 12 combat bots 52156 | -4/Warlord | Spotted Executioner 52160 | -4/Warlord | Spotted Executioner 52167 | -4/Warlord | Destroyed Executioner 52180 | -4/Warlord | Destroyed Executioner 52201 | -4/Warlord | Destroyed 11 combat bots 52216 | -4/Warlord | Spotted Striker 52220 | -4/Warlord | Destroyed Striker 52658 | -4/Warlord | Destroyed Striker 52659 | -4/Warlord | Spotted Striker 52661 | -4/Warlord | Destroyed Striker 52689 | -4/Warlord | Destroyed 13 combat bots 52969 | -4/Warlord | Spotted Executioner 52977 | -4/Warlord | Destroyed Executioner 52998 | -4/Warlord | Destroyed 8 combat bots 53486 | -4/Warlord | Spotted Executioner 53489 | -4/Warlord | Destroyed Executioner 53592 | -4/Warlord | Spotted Executioner 53596 | -4/Warlord | Destroyed Executioner 53609 | -4/Warlord | Spotted Executioner 53989 | -4/Warlord | Spotted Striker 53995 | -4/Warlord | Destroyed Striker 54905 | -4/Warlord | Spotted Striker 54911 | -4/Warlord | Destroyed Striker 54948 | -4/Warlord | Destroyed Executioner 54952 | -4/Warlord | Spotted Executioner 54955 | -4/Warlord | Destroyed Executioner 55201 | -4/Warlord | Spotted Striker 55207 | -4/Warlord | Destroyed Striker 55314 | -4/Warlord | Spotted Executioner 55332 | -4/Warlord | Destroyed Executioner 56185 | -4/Warlord | Entered Proximity Caves 56397 | -3/Proximity Caves | Destroyed 8 combat bots 57054 | -3/Proximity Caves | Attracted the attention of an 0b10 checkpoint 57118 | -3/Proximity Caves | Spotted B-86 Titan 57397 | -3/Proximity Caves | Attracted the attention of an 0b10 outpost 57432 | -3/Proximity Caves | Destroyed 7 combat bots 58137 | -3/Proximity Caves | Destroyed B-86 Titan 58228 | -3/Proximity Caves | Discovered new exit (range 12) 61794 | -3/Proximity Caves | Entered Research 61794 | -3/Research | Evolved 2 slots: Power x1, Utility x1 61796 | -3/Research | Loaded intel: 23 terminal locations 62544 | -3/Research | First assault squad dispatched 62560 | -3/Research | Incoming assault squad redirected 62660 | -3/Research | Identified exit to Armory 62660 | -3/Research | Identified exit to Quarantine 62760 | -3/Research | Spotted B-86 Titan 62915 | -3/Research | System corruption reached 10% 63844 | -3/Research | System corruption reached 30% 64067 | -3/Research | Incoming assault squad redirected 64559 | -3/Research | Incoming assault squad redirected 64823 | -3/Research | Incoming assault squad redirected 66069 | -3/Research | Incoming assault squad redirected 66400 | -3/Research | High security lockdown imminent 66427 | -3/Research | Destroyed 8 combat bots 66480 | -3/Research | High security lockdown engaged 66618 | -3/Research | Destroyed 13 combat bots 66738 | -3/Research | Spotted Executioner 66740 | -3/Research | Spotted Investigator 66742 | -3/Research | Destroyed Investigator 66743 | -3/Research | Destroyed Executioner 66769 | -3/Research | Destroyed 11 combat bots 66821 | -3/Research | Sterilization system engaged 66821 | -3/Research | Non-combat units ordered to evacuate 66881 | -3/Research | Spotted Striker 66883 | -3/Research | Spotted Investigator 66884 | -3/Research | Scanned by Researcher 66886 | -3/Research | Destroyed Investigator 66889 | -3/Research | Destroyed Striker 66895 | -3/Research | Spotted Executioner 66917 | -3/Research | Destroyed Executioner 66921 | -3/Research | Combat units ordered to evacuate 66985 | -3/Research | Destroyed 21 combat bots 67121 | -3/Research | Ambient heat levels rising (+10) 67255 | -3/Research | Entered Armory 67256 | -3/Armory | Loaded intel: 39 trap records 67258 | -3/Armory | Loaded intel: 16 terminal locations 67505 | -3/Armory | First assault squad dispatched 67654 | -3/Armory | High security lockdown imminent 67659 | -3/Armory | Energy Cycler disabled 67680 | -3/Armory | Destroyed 11 combat bots 67734 | -3/Armory | High security lockdown engaged 67781 | -3/Armory | Found Fusion Bomb Launcher 67848 | -3/Armory | Destroyed 9 combat bots 67905 | -3/Armory | Spotted Investigator 67909 | -3/Armory | Destroyed Investigator 67938 | -3/Armory | Destroyed 13 combat bots 68019 | -3/Armory | Destroyed 13 combat bots 68088 | -3/Armory | Destroyed 23 combat bots 68138 | -3/Armory | Destroyed Striker 68289 | -3/Armory | Destroyed 24 combat bots 68340 | -3/Armory | Spotted Executioner 68351 | -3/Armory | Destroyed Executioner 68404 | -3/Armory | Destroyed 17 combat bots 68477 | -3/Armory | Spotted Executioner 68479 | -3/Armory | Spotted Striker 68479 | -3/Armory | Spotted Executioner 68482 | -3/Armory | Destroyed Striker 68483 | -3/Armory | Sterilization system engaged 68483 | -3/Armory | Non-combat units ordered to evacuate 68484 | -3/Armory | Destroyed Executioner 68498 | -3/Armory | Destroyed Executioner 68530 | -3/Armory | Destroyed 24 combat bots 68552 | -3/Armory | Spotted Striker 68553 | -3/Armory | Spotted Executioner 68553 | -3/Armory | Spotted Executioner 68556 | -3/Armory | Destroyed Striker 68559 | -3/Armory | Destroyed Executioner 68561 | -3/Armory | Destroyed Executioner 68582 | -3/Armory | Destroyed 11 combat bots 68583 | -3/Armory | Combat units ordered to evacuate 68783 | -3/Armory | Ambient heat levels rising (+10) 68933 | -3/Armory | Ambient heat levels rising (+10) 68935 | -3/Armory | Spotted B-86 Titan 69052 | -3/Armory | Discovered new exit (range 2) 69083 | -3/Armory | Ambient heat levels rising (+10) 69160 | -3/Armory | Destroyed 7 combat bots 69161 | -3/Armory | Entered Lab 69161 | -3/Lab | Discovered new exit (range 9) 69470 | -3/Lab | Entered Research 69470 | -2/Research | Warlord forces began assault on 0b10 69470 | -2/Research | Evolved 2 slots: Propulsion x2 69472 | -2/Research | Found Com. Tesla Bomb Launcher 69476 | -2/Research | Found Exp. Force Field 69580 | -2/Research | Research machine network offline 69860 | -2/Research | Discovered new exit (range 12) 69885 | -2/Research | Identified exit to Testing 69949 | -2/Research | Spotted Executioner 69957 | -2/Research | Destroyed Executioner 69958 | -2/Research | Spotted Executioner 69963 | -2/Research | Destroyed Executioner 70024 | -2/Research | Discovered exit to Testing (range 10) 70060 | -2/Research | Spotted Executioner 70062 | -2/Research | Spotted Executioner 70077 | -2/Research | Destroyed Executioner 70078 | -2/Research | Destroyed Executioner 70164 | -2/Research | Borebot progress halted 70223 | -2/Research | Borebot progress halted 70329 | -2/Research | Spotted Striker 70335 | -2/Research | Destroyed Striker 70344 | -2/Research | Borebot progress halted 70413 | -2/Research | Spotted Striker 70492 | -2/Research | Entered Testing 70632 | -2/Testing | Incoming investigation squad redirected 70877 | -2/Testing | Discovered new exit (range 19) 71019 | -2/Testing | First assault squad dispatched 71045 | -2/Testing | Incoming assault squad redirected 71354 | -2/Testing | Found Fusion Bomb Launcher 71397 | -2/Testing | Destroyed 9 combat bots 71399 | -2/Testing | Lost 4 parts (2p2u) 71806 | -2/Testing | Incoming assault squad redirected 71908 | -2/Testing | System corruption reached 10% 72007 | -2/Testing | Incoming assault squad redirected 72017 | -2/Testing | Incoming assault squad redirected 72507 | -2/Testing | Incoming assault squad redirected 73019 | -2/Testing | Incoming assault squad redirected 73088 | -2/Testing | Destroyed 7 combat bots 73246 | -2/Testing | High security lockdown imminent 73326 | -2/Testing | High security lockdown engaged 73418 | -2/Testing | Destroyed Striker 73454 | -2/Testing | Destroyed 17 combat bots 73496 | -2/Testing | Spotted Investigator 73499 | -2/Testing | Destroyed Investigator 73534 | -2/Testing | Destroyed 14 combat bots 73632 | -2/Testing | Spotted Striker 73634 | -2/Testing | Found Adv. Micro-nuke Launcher 73635 | -2/Testing | Spotted Striker 73635 | -2/Testing | Spotted Striker 73636 | -2/Testing | Destroyed Striker 73642 | -2/Testing | Destroyed Striker 73646 | -2/Testing | Destroyed Striker 73658 | -2/Testing | Spotted Striker 73658 | -2/Testing | Spotted Executioner 73659 | -2/Testing | Destroyed Executioner 73660 | -2/Testing | Destroyed Striker 73678 | -2/Testing | System corruption reached 30% 73703 | -2/Testing | Destroyed 23 combat bots 73826 | -2/Testing | Spotted Executioner 73832 | -2/Testing | Destroyed Executioner 73843 | -2/Testing | Sterilization system engaged 73843 | -2/Testing | Non-combat units ordered to evacuate 73896 | -2/Testing | Destroyed 34 combat bots 73943 | -2/Testing | Combat units ordered to evacuate 74143 | -2/Testing | Ambient heat levels rising (+10) 74165 | -2/Testing | Found Exp. Shock Absorption System 74214 | -2/Testing | Entered Access 74214 | -1/Access | Evolved 2 slots: Weapon x2 74257 | -1/Access | Found YI-UF0's Bottomless Matter Pit 74279 | -1/Access | High security lockdown imminent 74308 | -1/Access | Destroyed 14 combat bots 74359 | -1/Access | High security lockdown engaged 74426 | -1/Access | Destroyed 8 combat bots 74513 | -1/Access | Spotted Investigator 74521 | -1/Access | Destroyed Investigator 74561 | -1/Access | Destroyed 22 combat bots 74661 | -1/Access | Spotted Striker 74669 | -1/Access | Destroyed Striker 74722 | -1/Access | Spotted Executioner 74722 | -1/Access | Spotted Striker 74723 | -1/Access | Destroyed Striker 74728 | -1/Access | Destroyed Executioner 74749 | -1/Access | Destroyed 28 combat bots 74856 | -1/Access | Spotted Executioner 74862 | -1/Access | Destroyed Executioner 74909 | -1/Access | Destroyed 7 combat bots 74909 | -1/Access | Found Prototype Launcher 75043 | -1/Access | Spotted Investigator 75049 | -1/Access | Destroyed Investigator 75053 | -1/Access | Destroyed Striker 75058 | -1/Access | Destroyed Executioner 75079 | -1/Access | Destroyed Striker 75079 | -1/Access | Spotted Striker 75079 | -1/Access | Spotted Executioner 75081 | -1/Access | Destroyed Executioner 75094 | -1/Access | Destroyed Striker 75105 | -1/Access | Spotted Striker 75105 | -1/Access | Spotted Striker 75105 | -1/Access | Spotted Striker 75105 | -1/Access | Spotted Striker 75107 | -1/Access | Destroyed Striker 75115 | -1/Access | Destroyed Striker 75117 | -1/Access | Destroyed Striker 75118 | -1/Access | Destroyed Striker 75125 | -1/Access | Sterilization system engaged 75133 | -1/Access | Spotted Striker 75133 | -1/Access | Spotted Striker 75133 | -1/Access | Spotted Executioner 75133 | -1/Access | Spotted Executioner 75133 | -1/Access | Spotted Striker 75133 | -1/Access | Spotted Striker 75136 | -1/Access | Destroyed Striker 75136 | -1/Access | Destroyed Executioner 75137 | -1/Access | Destroyed Striker 75139 | -1/Access | Destroyed Striker 75140 | -1/Access | Destroyed Striker 75142 | -1/Access | Destroyed Executioner 75163 | -1/Access | Destroyed 49 combat bots 75168 | -1/Access | Spotted Striker 75168 | -1/Access | Spotted Executioner 75171 | -1/Access | Destroyed Executioner 75178 | -1/Access | Destroyed Striker 75199 | -1/Access | Destroyed 9 combat bots 75306 | -1/Access | Spotted Executioner 75315 | -1/Access | Destroyed Executioner 75330 | -1/Access | System corruption reached 10% 75351 | -1/Access | Destroyed 11 combat bots 75384 | -1/Access | Energy Cycler disabled 75425 | -1/Access | Ambient heat levels rising (+10) 75456 | -1/Access | Destroyed 11 combat bots 75575 | -1/Access | Ambient heat levels rising (+10) 75725 | -1/Access | Ambient heat levels rising (+10) 75864 | -1/Access | Discovered new exit (range 10) 75875 | -1/Access | Ambient heat levels rising (+10) 75914 | -1/Access | Identified Containment Facilitator 76022 | -1/Access | Found Exp. Core Analyzer 76025 | -1/Access | Ambient heat levels rising (+10) 76055 | -1/Access | Entered Command 76305 | -1/Command | First assault squad dispatched 76425 | -1/Command | Destroyed 10 combat bots 76626 | -1/Command | Destroyed 8 combat bots 76629 | -1/Command | Incoming assault squad redirected 76700 | -1/Command | High security lockdown imminent 76723 | -1/Command | Destroyed 9 combat bots 76780 | -1/Command | High security lockdown engaged 76839 | -1/Command | Destroyed 18 combat bots 77006 | -1/Command | Spotted Investigator 77018 | -1/Command | Destroyed Investigator 77026 | -1/Command | Destroyed 15 combat bots 77107 | -1/Command | Spotted Striker 77112 | -1/Command | Spotted Executioner 77113 | -1/Command | Destroyed Striker 77177 | -1/Command | Destroyed Executioner 77179 | -1/Command | Phase Generator disabled 77207 | -1/Command | Destroyed 28 combat bots 77222 | -1/Command | Found Corrupted Containment Facilitator 77357 | -1/Command | Spotted Striker 77357 | -1/Command | Spotted Executioner 77357 | -1/Command | Spotted Striker 77360 | -1/Command | Destroyed Executioner 77362 | -1/Command | Destroyed Striker 77363 | -1/Command | Spotted Executioner 77368 | -1/Command | Destroyed Striker 77380 | -1/Command | Destroyed Executioner 77399 | -1/Command | Spotted Striker 77400 | -1/Command | Spotted Striker 77403 | -1/Command | Destroyed Striker 77409 | -1/Command | Destroyed Striker 77446 | -1/Command | Destroyed 33 combat bots 77616 | -1/Command | Spotted Executioner 77617 | -1/Command | Spotted Striker 77617 | -1/Command | Spotted Striker 77622 | -1/Command | Destroyed Striker 77627 | -1/Command | Spotted Striker 77627 | -1/Command | Spotted Striker 77627 | -1/Command | Destroyed Striker 77627 | -1/Command | Spotted Executioner 77629 | -1/Command | Destroyed Executioner 77630 | -1/Command | Destroyed Striker 77632 | -1/Command | Spotted Executioner 77632 | -1/Command | Spotted Executioner 77634 | -1/Command | Spotted Striker 77634 | -1/Command | Spotted Executioner 77641 | -1/Command | Destroyed Striker 77643 | -1/Command | Destroyed Executioner 77643 | -1/Command | Destroyed Executioner 77660 | -1/Command | Destroyed Striker 77666 | -1/Command | Destroyed Executioner 77690 | -1/Command | Lost 6 parts (1p1n4u) 77692 | -1/Command | Destroyed 32 combat bots 78988 | -1/Command | Spotted B-99 Colossus 80238 | -1/Command | Found Antimissile System 80407 | -1/Command | Spotted M Guard 80407 | -1/Command | Spotted M Guard 80410 | -1/Command | Spotted Combat Programmer 80410 | -1/Command | Spotted Combat Programmer 80492 | -1/Command | Build established: Generator-Bomber 80796 | -1/Command | Destroyed Combat Programmer 80833 | -1/Command | Destroyed Combat Programmer 80835 | -1/Command | Found Com. Tesla Bomb Launcher 80850 | -1/Command | Destroyed M Guard 80853 | -1/Command | Destroyed M Guard 80853 | -1/Command | All MAIN.C guards destroyed 81111 | -1/Command | Build established: Generator-Mutant 81491 | -1/Command | Found Gui. Micro-nuke Launcher 82151 | -1/Command | Found Exp. Core Analyzer 83307 | -1/Command | Destroyed 48 combat bots 83317 | -1/Command | Lost 7 parts (1p5u1w) 83380 | -1/Command | Found Prototype Launcher 83380 | -1/Command | Identified Point Singularity Launcher 83675 | -1/Command | Build established: Generator-Bomber 89093 | -1/Command | Build established: Generator-Gunner 97120 | -1/Command | Met MAIN.C 97126 | -1/Command | 0b10 Conduit disabled 97161 | -1/Command | Destroyed MAIN.C Shell 97163 | -1/Command | Surrendered to MAIN.C 97163 | -1/Command | Loaded intel: 47 machine locations 97163 | -1/Command | Loaded intel: 87 trap records 97163 | -1/Command | Identified exit to Surface 97163 | -1/Command | Discovered exit to Surface (range 41) 97163 | -1/Command | Discovered exit to Surface (range 107) 97337 | -1/Command | MAIN.C activated Command garrisons 97376 | -1/Command | Unknown forces attacked Command 97376 | -1/Command | Spotted EQ-001 97376 | -1/Command | Spotted EQ-000 97376 | -1/Command | Spotted EQ-003 97376 | -1/Command | Spotted EQ-005 97376 | -1/Command | Spotted EQ-002 97376 | -1/Command | Spotted EQ-006 97376 | -1/Command | Spotted EQ-004 97379 | -1/Command | Destroyed EQ-000 97380 | -1/Command | Destroyed EQ-003 97394 | -1/Command | Destroyed EQ-004 97397 | -1/Command | Destroyed EQ-005 97468 | -1/Command | Spotted EQ-020 97468 | -1/Command | Spotted EQ-018 97474 | -1/Command | Spotted EQ-019 97479 | -1/Command | Spotted EQ-027 97479 | -1/Command | Spotted EQ-022 97484 | -1/Command | Spotted EQ-016 97484 | -1/Command | Destroyed EQ-019 97486 | -1/Command | Destroyed EQ-022 97492 | -1/Command | Destroyed EQ-016 97582 | -1/Command | Destroyed EQ-038 97584 | -1/Command | Spotted EQ-039 97586 | -1/Command | Spotted EQ-041 97586 | -1/Command | Spotted EQ-042 97586 | -1/Command | Spotted EQ-040 97598 | -1/Command | Destroyed EQ-042 97598 | -1/Command | Spotted EQ-047 97599 | -1/Command | Spotted EQ-024 97608 | -1/Command | Destroyed EQ-047 97698 | -1/Command | Spotted EQ-069 97698 | -1/Command | Spotted EQ-063 97698 | -1/Command | Spotted EQ-060 97698 | -1/Command | Spotted EQ-061 97698 | -1/Command | Spotted EQ-062 97712 | -1/Command | Spotted EQ-036 97713 | -1/Command | Spotted EQ-029 97715 | -1/Command | Spotted EQ-076 97716 | -1/Command | Spotted EQ-050 97717 | -1/Command | Spotted EQ-058 97719 | -1/Command | Destroyed EQ-029 97719 | -1/Command | Destroyed EQ-069 97719 | -1/Command | Destroyed EQ-036 97720 | -1/Command | Destroyed EQ-050 97725 | -1/Command | Destroyed EQ-076 97759 | -1/Command | Spotted EQ-072 97759 | -1/Command | Spotted EQ-074 97776 | -1/Command | Attackers retreated from Command 97777 | *** | Fortifying 0b10! Last Messages --------------- 97766_ Slug penetrates EQ-072. 97766_ Slug penetrates EQ-074. 97766_ MAIN.C knocked back. 97768_ Slug penetrates EQ-074. 97769_ EQ-074 destroyed. 97769_ Slug penetrates EQ-072. 97772_ EQ-072 knocked back. 97772_ Hellfire Missile intercepted. 97772_ Slug penetrates EQ-072. 97773_ L-61 Swordsman knocked back. 97775_ Slug penetrates EQ-072. 97775_ EQ-072 destroyed. 97776_ ALERT: Enemy forces retreating. MAIN.C: I admit your assistance was pivotal here. It looks like I was right to trust you. This attack appears to have been designed to merely test our defenses, although it was nearly effective enough to force me to take the conflict to the next level. Investigating the origins of these bots should be one of our highest priorities... Map ----- +----------------------------------------------------+ | ####### #???????????????????????????????????#?#?#? | | ??????# #???????????????????????????????????#?#?#? | | ??????# #???????????????????????????????????#?#?#? | | ??????# #???????????????????????????????????#?#?#? | | #######+####????????????????????????????????#?#?#? | | #????????????????????????????????#?#?#? | | #????????????????????????????????#?#?#? | | #????????????????????????????????#?#?#? | | #????????????????????????????????#?#?#? | | #?###########################????#?#?#? | | #?#????????????????#????????#????#?#?#? | | ######+#####?#?############### #######?#????#?#?#? | | #### ####?#""" " " ############# | | # ""##?#" #?#?????????? | | # ""##?#"""" ############ | | # # ""##?#""" | | # # T##?#" | | # # ""##?#"" | | # # ""##?#"" ############# | | # # ""##?# " #?#?????????? | | # # ####?# ############# | | # # #??#?# " % #?#????#?#?#? | | # # #??#?# #?#????#?#?#? | | # #??#?# b #?#????#?#?#? | | + #??#?# % " ""#?#????#?#?#? | | #### #??#?# % @ " #?#????#?#?#? | | ???####+########M % " #?#????#?#?#? | | ??????# %%lE "" " #?#????#?#?#? | | ####### l "" #?#????#?#?#? | | %% #?#????#?#?#? | | ############ # " #?#????#?#?#? | | ???????????? #?# """#?#????#?#?#? | | ?????????????#?# " #?#????#?#?#? | | ######???????#?#########;##;##########?#????#?#?#? | | #???????#?????????# ??##??????????#????#?#?#? | | #???????###########################????#?#?#? | | #??????????????????????????????????????#?#?#? | | ##?????????????????????????????????????#?#?#? | | #?????????????????????????????????????#?#?#? | | ##?????????????????????????????????????#?#?#? | | #??????????????????????????????????????#?#?#? | | #??????????????????????????????????????#?#?#? | | #??????????????????????????????????????#?#?#? | | ####################????????????????????????#?#?#? | | ###### #????????????????????????#?#?#? | | ## T#????????????????????????#?#?#? | | ## #######"""##????????????????????????#?#?#? | | ## #??####"""##????????????????????????#?#?#? | | ## #??# #????????????????????????#?#?#? | | ## #??# #????????????????????????#?#?#? | +----------------------------------------------------+ Best States ------------- Heat Dissipation 142 Energy Generation 137 Energy Capacity 1750 Matter Stores 1504 Matter Capacity 1800 Sight Range 22 Terrain Scan Density 110 Jamming Range 14 Power Amplification 70 Armor Coverage 1200 Resistance: KI 40 Resistance: EX 75 Resistance: EM 50 Core Shielding 30 Point Defense Rating 240 Weapon Cycling 25 Evasion (%) 55 Targeting Accuracy 8 Launcher Accuracy 40 Core Analysis 12 Recoil Reduction 6 Matter Filtering 30 Energy Filtering 30 Kinecelleration 40 Item Schematics ----------------- Combat Drone Bay | -7/Data Miner | Free Lgt. Regenerative Plating | -7/Data Miner | Free Cld. Cesium-ion Thruster | -7/Data Miner | Free Exp. Propulsion Shielding | -7/Data Miner | Free Ion Burst Cannon | -7/Data Miner | Free Nuclear Pulse Array | -7/Data Miner | Free Adv. Salvage Targeting Computer | -7/Data Miner | Free Adv. Plasma Cannon | -7/Data Miner | Free Energy Well | -7/Data Miner | Free Adv. Shield Generator | -7/Data Miner | Free Point Defense Array | -7/Data Miner | Free Lgt. Antimatter Reactor | -7/Data Miner | Free Hvy. Battle Rifle | -6/Zion | Free Battle Cannon | -6/Zion | Free Slug Cannon | -6/Zion | Free Flamer | -6/Zion | Free Enh. Flamer | -6/Zion | Free Assault Drone Bay | -5/Zhirov | Free Exp. Heat Sink | -5/Zhirov | Free Exp. Optical Array | -5/Zhirov | Free Imp. Arc Thrower | -5/Zhirov | Free Exp. Cooling System | -2/Testing | Archive Hvy. Hardcell Cannon | -2/Testing | Archive Diametric Drive | -2/Testing | Archive Centrium Medium Armor Plating | -2/Testing | Archive Exp. Focal Shield | -2/Testing | Archive Adv. Micro-nuke Launcher | -2/Testing | Archive Hvy. Dispersion Rifle | -2/Testing | Archive Robot Schematics ------------------ S-27 Virus | -7/Data Miner | Free A-15 Conveyor | -7/Data Miner | Free E-15 Imp | -7/Data Miner | Free O-24 Administrator | -7/Data Miner | Free H-66 Slayer | -7/Data Miner | Free Fabricated ------------ Nothing Alien Tech Used ----------------- Supercharged Integrated Dissipator Achievements -------------- None Challenges ------------ None Cogshop Purchases (339) ------------------------- Imp. EM Shotgun (Loot Box) Hvy. EM Shotgun (Loot Box) Aluminum Leg (599) Imp. Aluminum Leg (699) Ion Engine (599) Airjet (Loot Box) Imp. Light Armor Plating (Loot Box) Imp. EM Shotgun (648) Rocket Launcher (423) Mni. Grenade Launcher (423) Rocket Launcher (423) Heat Sink (458) Imp. EM Shotgun (310) Imp. EM Shotgun (310) Imp. Aluminum Leg (555) Imp. Ion Engine (655) Imp. Terrain Scan Processor (Loot Box) Plasma Cannon (Loot Box) Imp. Signal Interpreter (Loot Box) Imp. Light Cannon (Loot Box) Imp. Aluminum Leg (655) Imp. Aluminum Leg (650) Imp. Light Armor Plating (587) Hvy. EM Shotgun (683) Adv. Targeting Computer (839) Hvy. EM Shotgun (301) Hvy. EM Shotgun (301) Imp. Heat Sink (303) Imp. Light Armor Plating (324) Imp. Titanium Leg (756) Titanium Leg (800) Titanium Leg (800) Enh. Nuclear Core (769) Weapon Cycler (825) Imp. EM Pulse Cannon (948) Imp. Medium Armor Plating (1206) Imp. EM Pulse Cannon (1004) Enh. Nuclear Core (670) Imp. Shield Generator (854) Adv. Heat Sink (949) Cld. Plasma Cannon (1128) Hvy. Shock Bomb Launcher (Loot Box) Neutrino Core (Loot Box) Imp. Medium Treads (1029) Imp. Shield Generator (1070) F-cell Engine (Loot Box) Adv. Assault Cannon (Loot Box) Hvy. Phase Cannon (Loot Box) Adv. Reaction Control System (Loot Box) Adv. Datajack (Loot Box) Imp. Arc Projector (Loot Box) Drone Bay (Loot Box) Imp. VSS Leg (Loot Box) Lyr. Medium Armor Plating (2705) Imp. EM Pulse Cannon (1183) Imp. Medium Treads (1097) Imp. Medium Treads (1097) Adv. Heat Sink (1284) Imp. Shield Generator (1155) Imp. Medium Treads (1759) F-cell Engine (1146) Imp. Cooling System (712) Proton Cannon (1010) Matter Compressor (755) Com. Matter Pod (559) Hvy. Treads (1354) Hyb. Deuterium Engine (1220) Imp. Weapon Cycler (1161) Force Field (1056) Lrn. Proton Cannon (843) Lrn. Proton Cannon (843) Enh. Optical Array (909) F-cell Engine (1432) Lyr. Medium Armor Plating (1766) Neutrino Core (1474) Enh. Optical Array (775) Adv. Cooling System (1332) Force Field (1182) Imp. Thermal Shield (1441) Imp. Thermal Shield (1441) Imp. Cooling System (1178) Lrn. Missile Launcher (883) Lrn. Missile Launcher (986) Powered Armor (872) Imp. Heavy Treads (1420) Quantum Capacitor (1567) Lrn. Proton Cannon (1410) Imp. Force Field (1575) Imp. Heavy Treads (1963) Adv. Targeting Computer (615) Imp. Medium Armor Plating (1052) Antimatter Reactor (914) Enh. Fission Core (1213) Enh. Fission Core (1175) Mak. Transmission Jammer (1323) Lrn. Tractor Beam (1058) Imp. Medium Armor Plating (1294) Micro-nuke Launcher (2154) Adv. Cooling System (1837) Imp. Medium Armor Plating (1245) Quantum Capacitor (1998) Launcher Loader (1871) Imp. Heavy Treads (1461) Adv. Force Field (1885) Exp. Actuator Array (Loot Box) Q-thruster (Loot Box) Biometal Heavy Treads (Loot Box) Imp. Remote Force Field (Loot Box) Biometal Heavy Treads (Loot Box) Adv. Heavy Siege Treads (Loot Box) Exp. Core Shielding (Loot Box) Quantum Reactor (Loot Box) Exp. Core Shielding (Loot Box) Centrium Leg (Loot Box) Exp. Reaction Control System (Loot Box) Centrium Leg (Loot Box) Biometal Leg (Loot Box) Centrium Leg (Loot Box) Imp. Focal Shield (Loot Box) Exp. Core Shielding (Loot Box) Point Defense Array (Loot Box) Biometal Heavy Treads (Loot Box) Biometal Heavy Treads (Loot Box) Adv. Cooling System (Loot Box) Biometal Heavy Treads (Loot Box) Adv. Heavy Siege Treads (Loot Box) Quantum Reactor (Loot Box) Imp. Remote Force Field (Loot Box) Exp. Core Shielding (Loot Box) Imp. Remote Force Field (Loot Box) Exp. Core Shielding (Loot Box) Centrium Leg (Loot Box) Impulse Thruster (Loot Box) Supercharged Integrated Dissipator (Loot Box) Centrium Heavy Armor Plating (3923) Adv. Power Amplifier (2563) Adv. Signal Interpreter (810) Adv. Datajack (884) Hvy. Neutron Cannon (1080) Bore Cannon (845) Bore Cannon (845) Adv. System Restoration Module (1782) Antimatter Reactor (1150) Particle Reactor (1246) Particle Reactor (1246) Gamma Bomb Array (1643) Exp. Cooling System (1866) Adv. Launcher Guidance Computer (926) Exp. Energy Well (1210) Adv. Matter Compressor (1117) Antimatter Reactor (1948) Nova Cannon (1414) Quantum Capacitor (1622) Com. HERF Cannon (1414) Tesla Bomb Launcher (3445) Micro-nuke Launcher (1737) Exp. Power Amplifier (1478) Lyr. Heavy Armor Plating (1035) Launcher Loader (1221) Centrium Heavy Treads (1693) Adv. Force Field (1704) Com. Tesla Bomb Launcher (3777) Hellfire Missile Launcher (4092) Lyr. Heavy Armor Plating (790) Imp. Heavy Siege Treads (1870) Cld. Antimatter Reactor (2952) Cld. Antimatter Reactor (3662) Particle Reactor (2756) Exp. Cooling System (870) Lyr. Heavy Armor Plating (726) Imp. Quantum Reactor (2017) Imp. Quantum Reactor (2017) Hvy. Neutron Cannon (405) Com. HERF Cannon (438) Mak. Terrain Scanner (1678) Arm. Heavy Treads (677) Biometal Heavy Treads (1535) Exp. Core Analyzer (1142) Tri-rail Accelerator (732) Mak. Transmission Jammer (1517) Enh. Nova Cannon (1325) Hvy. Reactive Plating (1333) Quantum Reactor (1842) Adv. EM Disruption Field (2829) Adv. Heavy Siege Treads (1558) Adv. Heavy Siege Treads (1558) Fusion Bomb Launcher (1227) Lyr. Heavy Armor Plating (1885) Quantum Reactor (2293) Lyr. Heavy Armor Plating (2080) Adv. Force Field (1690) Fusion Bomb Launcher (917) Hvy. Shock Bomb Launcher (776) Exp. Force Field (Loot Box) Com. Tesla Bomb Launcher (3348) Adv. Heavy Siege Treads (1955) Exp. Power Amplifier (1764) Quantum Reactor (Loot Box) Adv. Signal Interpreter (869) Arm. Heavy Treads (Loot Box) Imp. Quantum Reactor (1762) Exp. Cooling System (2089) Adv. Focal Shield (1947) Centrium Heavy Armor Plating (2893) Imp. Quantum Reactor (1885) Imp. Quantum Reactor (1885) Adv. Micro-nuke Launcher (3113) Centrium Leg (Loot Box) Exp. Thermal Shield (Loot Box) Enh. Quantum Rifle (Loot Box) Enh. Nova Cannon (Loot Box) Q-thruster (Loot Box) Quantum Reactor (Loot Box) Exp. Reaction Control System (Loot Box) Coolant Network (Loot Box) Centrium Leg (Loot Box) Com. HERF Cannon (Loot Box) Arm. Heavy Treads (1287) Antimissile System (3000) Enh. Armored Heavy Treads (Loot Box) Enh. Nova Cannon (Loot Box) Enh. Nova Cannon (Loot Box) Quantum Reactor (Loot Box) Exp. Transmission Jammer (Loot Box) Enh. Nova Cannon (Loot Box) Quantum Capacitor (2713) Centrium Heavy Armor Plating (2434) Exp. Shock Absorption System (Loot Box) Biometal Heavy Treads (Loot Box) Biometal Heavy Treads (Loot Box) YI-UF0's Bottomless Matter Pit (Loot Box) Com. Linear Accelerator (Loot Box) Biometal Heavy Treads (Loot Box) Enh. Quantum Rifle (Loot Box) Matter Filter (1843) Adv. Force Field (3104) Adv. System Restoration Module (2979) Imp. Quantum Reactor (2135) Launcher Loader (2993) Adv. Power Amplifier (3591) Quantum Reactor (Loot Box) Adv. Quantum Shading Machine (Loot Box) Enh. Quantum Rifle (Loot Box) Hdn. Centrium Leg (Loot Box) Centrium Leg (Loot Box) Enh. Quantum Rifle (Loot Box) Enh. Nova Cannon (Loot Box) Rnf. Quantum Reactor (Loot Box) Exp. Biometal Medium Treads (Loot Box) Enh. Quantum Rifle (Loot Box) Exp. Core Analyzer (Loot Box) Cmb. Linear Gravjet (Loot Box) Ragnarok Missile Launcher (2564) Neutron Missile Launcher (2198) Centrium Heavy Treads (1289) Cld. Q-thruster (Loot Box) Enh. Nova Cannon (Loot Box) Thermal Barrier (Loot Box) Recoil Nullifier (2486) Energy Filter (2033) Imp. System Restoration Module (2668) Energy Filter (2693) Launcher Loader (2993) Imp. Quantum Reactor (2139) Centrium Heavy Armor Plating (3317) Adv. Heavy Siege Treads (1432) Imp. System Restoration Module (3705) Imp. System Restoration Module (4241) Enh. Nova Cannon (Loot Box) Adv. Heavy Siege Treads (Loot Box) Lgt. Quantum Reactor (Loot Box) Adv. Heavy Siege Treads (Loot Box) Enh. Nova Cannon (Loot Box) Enh. Nova Cannon (Loot Box) Centrium Leg (Loot Box) Enh. Nova Cannon (Loot Box) Cmb. Linear Gravjet (Loot Box) Centrium Leg (Loot Box) Imp. Core Shielding (1089) Micro-nuke Launcher (1347) Graphene Brace (5166) Point Singularity Launcher (Loot Box) Cmb. Linear Gravjet (Loot Box) Cld. Linear Gravjet (Loot Box) Centrium Leg (Loot Box) Enh. Nova Cannon (Loot Box) Centrium Leg (Loot Box) Lgt. Quantum Reactor (Loot Box) Centrium Leg (Loot Box) Gui. Micro-nuke Launcher (Loot Box) Adv. Heavy Siege Treads (Loot Box) Exp. Q-thruster (Loot Box) Quantum Reactor (Loot Box) Biometal Heavy Treads (Loot Box) Adv. Quantum Shading Machine (Loot Box) Biometal Heavy Treads (Loot Box) Railgun (1024) Railgun (1024) Railgun (1024) Railgun (1024) Adv. Weapon Cycler (6056) Imp. Kinecellerator (5124) Com. Tesla Bomb Launcher (2521) Exp. Core Analyzer (Loot Box) Enh. Quantum Rifle (Loot Box) Lgt. Quantum Reactor (Loot Box) Centrium Leg (Loot Box) Enh. Nova Cannon (Loot Box) Enh. Nova Cannon (Loot Box) Enh. Nova Cannon (Loot Box) Centrium Leg (Loot Box) Lgt. Quantum Reactor (Loot Box) Quantum Reactor (Loot Box) Enh. Quantum Rifle (Loot Box) Enh. Nova Cannon (Loot Box) Hvy. Proton Missile Launcher (2200) Exp. Gyrokinetic Inverter (Loot Box) Lgt. Quantum Reactor (Loot Box) Lgt. Quantum Reactor (Loot Box) Adv. Heavy Siege Treads (Loot Box) Exp. Biometal Leg (Loot Box) Enh. Quantum Rifle (Loot Box) Centrium Leg (Loot Box) Centrium Leg (Loot Box) Enh. Nova Cannon (Loot Box) Enh. Nova Cannon (Loot Box) Biometal Heavy Treads (Loot Box) Biometal Heavy Treads (Loot Box) Centrium Leg (Loot Box) Imp. Quantum Reactor (Loot Box) Centrium Heavy Armor Plating (2009) Adv. Force Field (3674) Imp. Kinecellerator (3109) Imp. System Restoration Module (2826) Imp. System Restoration Module (2826) Imp. System Restoration Module (2826) Enh. Nova Cannon (Loot Box) Railgun (2653) Adv. Targeting Computer (2330) Game ------ Seed TargetSigixBlade Manual? 0 Play Time 09:09:25 Cumulative 733.7 hours Start 2022.05.14 @ 16:57:21 End 2022.05.15 @ 17:46:28 Sessions 3 Manual Loads 0 Difficulty Rogue Special Mode AFD2019/Pay2Buy Game No. 320 Rogue 319 Adventurer 1 Explorer 0 Win Type 8 Total 82 Types 24/9/12/3/2/1/29/1/1 Lore% 98 Gallery% 99 Achievement% 90 Wizard Run 0 Options --------- ASCII 1 Keyboard 1 Movement Numpad Keybinds 0 Fullscreen 0 Font 18/Smallcaps Map View 76x50 Tactical HUD 1 Map Filters NONE Filters NONE Steam 1 RUN: 80d04207-2573-4bde-b8be-58282636cee2